Workbook

Sheet Index
A1: Number | B1: Essay's Title | C1: Magazine Reference | D1: Folder | E1: File Name | F1: Essay [Adobe Acrobat] | G1: Future | H1: Older Earth | I1: Older Galaxy | J1: Older Universe | K1: K/Ar | L1: 40Ar/39Ar | M1: Re/Os | N1: Pb 207 | O1: Th-232 | P1: U-235 | Q1: U-238 | R1: Sm/Nd | S1: Rb/Sr | T1: Nd/Sm | U1: Lt/Hf
A2: 1 | B2: Norwegian Caledonides: An isotopic investigation | C2: Lithos, Volume 117, 2010, Pages 1-19 | D2: C:\Essays\Geo_Dating\Dating\Future_Ages\ | E2: =("Future_Ages_0" & A2) -> Future_Ages_01 | F2: =(D2 & E2 & ".pdf") -> C:\Essays\Geo_Dating\Dating\Future_Ages\Future_Ages_01.pdf | G2: 19 | H2: 20 | I2: 8 | J2: 7 | R2: 54
A3: 2 | B3: Multi-stage origin of Roberts Victor eclogites | C3: Lithos, Volume 142-143, 2012, Pages 161-181 | D3: C:\Essays\Geo_Dating\Dating\Future_Ages\ | E3: =("Future_Ages_0" & A3) -> Future_Ages_02 | F3: =(D3 & E3 & ".pdf") -> C:\Essays\Geo_Dating\Dating\Future_Ages\Future_Ages_02.pdf | G3: 39 | H3: 11 | I3: 3 | J3: 3 | R3: 13 | S3: 16 | T3: 22
A4: 3 | B4: Re-Os systematics of mantle xenoliths | C4: Geochimica et Cosmochimica Acta, 1999, Volume 63, Number 7/8, Pages 1203-1217 | D4: C:\Essays\Geo_Dating\Dating\Future_Ages\ | E4: Future_Ages_03 | F4: =(D4 & E4 & ".pdf") -> C:\Essays\Geo_Dating\Dating\Future_Ages\Future_Ages_03.pdf | G4: 6 | M4: 6
A5: 5 | B5: Re/Os Isotopes of Sulfides | C5: Lithos, Volume , Volume 102, 2008, Pages 43–64 | D5: C:\Essays\Geo_Dating\Dating\Future_Ages\ | E5: Future_Ages_05 | F5: =(D5 & E5 & ".pdf") -> C:\Essays\Geo_Dating\Dating\Future_Ages\Future_Ages_05.pdf | G5: 140 | H5: 35 | I5: 9 | J5: 6 | M5: 190 | U5: 7
A6: 8 | B6: Lu-Hf Geochronology | C6: Chemical Geology, Volume 142, 1997, Pages 63-78 | D6: C:\Essays\Geo_Dating\Dating\Future_Ages\ | E6: Future_Ages_08 | F6: =(D6 & E6 & ".pdf") -> C:\Essays\Geo_Dating\Dating\Future_Ages\Future_Ages_08.pdf | G6: 7
A7: 9 | B7: Isotopic Disequilibrium | C7: Chemical Geology, Volume 162, 2000, Pages 169-191 | D7: C:\Essays\Geo_Dating\Dating\Future_Ages\ | E7: Future_Ages_09 | F7: C:\Essays\Geo_Dating\Dating\Future_Ages\Future_Ages_09.pdf
A8: 10 | D8: C:\Essays\Geo_Dating\Dating\Future_Ages\ | E8: =("Future_Ages_" & A8) -> Future_Ages_10 | F8: C:\Essays\Geo_Dating\Dating\Future_Ages\Future_Ages_10.pdf
A9: 11 | B9: Multiple Metasomatic Events | C9: Lithos, Volume 112-S, 2009, Pages 896-912 | D9: C:\Essays\Geo_Dating\Dating\Future_Ages\ | E9: =("Future_Ages_" & A9) -> Future_Ages_11 | F9: C:\Essays\Geo_Dating\Dating\Future_Ages\Future_Ages_11.pdf
A10: 12 | B10: Re–Os Evidence | C10: Chemical Geology 236, 2007, Pages 323-338 | D10: C:\Essays\Geo_Dating\Dating\Future_Ages\ | E10: Future_Ages_12 | F10: C:\Essays\Geo_Dating\Dating\Future_Ages\Future_Ages_12.pdf
A11: 13 | B11: Central Asian Orogenic Belt | C11: Lithos, Volume 126, 2011, Pages 233-247 | D11: C:\Essays\Geo_Dating\Dating\Future_Ages\ | E11: Future_Ages_13 | F11: C:\Essays\Geo_Dating\Dating\Future_Ages\Future_Ages_13.pdf
A12: 14 | B12: The Mamonia complex, Cyprus | C12: Chemical Geology, Volume 248, 2008, Pages 195-212 | D12: C:\Essays\Geo_Dating\Dating\Future_Ages\ | E12: Future_Ages_14 | F12: C:\Essays\Geo_Dating\Dating\Future_Ages\Future_Ages_14.pdf
A13: 15 | D13: C:\Essays\Geo_Dating\Dating\Future_Ages\ | E13: Future_Ages_15 | F13: C:\Essays\Geo_Dating\Dating\Future_Ages\Future_Ages_15.pdf
A14: 16 | B14: A Paleozoic Convergent Plate | C14: Chemical Geology, Volume 208, 2004, Pages 141-156 | D14: C:\Essays\Geo_Dating\Dating\Future_Ages\ | E14: Future_Ages_16 | F14: C:\Essays\Geo_Dating\Dating\Future_Ages\Future_Ages_16.pdf
A15: 17 | B15: Northern Canadian Cordillera Xenoliths | C15: Geochimica et Cosmochimica Acta, 2000, Volume 64, Number 17, Pages 3061-3071 | D15: C:\Essays\Geo_Dating\Dating\Future_Ages\ | E15: Future_Ages_17 | F15: C:\Essays\Geo_Dating\Dating\Future_Ages\Future_Ages_17.pdf
A16: 18 | D16: C:\Essays\Geo_Dating\Dating\Future_Ages\ | E16: Future_Ages_18 | F16: C:\Essays\Geo_Dating\Dating\Future_Ages\Future_Ages_18.pdf
A17: 19 | B17: Xenoliths from Yangyuan and Fansi | C17: Lithos, Volume 102, 2008, Pages 25-42 | D17: C:\Essays\Geo_Dating\Dating\Future_Ages\ | E17: Future_Ages_19 | F17: C:\Essays\Geo_Dating\Dating\Future_Ages\Future_Ages_19.pdf
A18: 20 | D18: C:\Essays\Geo_Dating\Dating\Future_Ages\ | E18: Future_Ages_20 | F18: C:\Essays\Geo_Dating\Dating\Future_Ages\Future_Ages_20.pdf
A19: 21 | B19: Formation of the North Atlantic Craton | C19: Chemical Geology, Volume 276, 2010, Pages 166-187 | D19: C:\Essays\Geo_Dating\Dating\Future_Ages\ | E19: Future_Ages_21 | F19: C:\Essays\Geo_Dating\Dating\Future_Ages\Future_Ages_21.pdf
A20: 22 | D20: C:\Essays\Geo_Dating\Dating\Future_Ages\ | E20: Future_Ages_22 | F20: C:\Essays\Geo_Dating\Dating\Future_Ages\Future_Ages_22.pdf
A21: 23 | B21: Canadian Cordillera Lithosphere | C21: Chemical Geology, Volume 166, 2000, Pages 85-101 | D21: C:\Essays\Geo_Dating\Dating\Future_Ages\ | E21: Future_Ages_23 | F21: C:\Essays\Geo_Dating\Dating\Future_Ages\Future_Ages_23.pdf
A22: 24 | D22: C:\Essays\Geo_Dating\Dating\Future_Ages\ | E22: Future_Ages_24 | F22: C:\Essays\Geo_Dating\Dating\Future_Ages\Future_Ages_24.pdf
A23: 25 | D23: C:\Essays\Geo_Dating\Dating\Future_Ages\ | E23: Future_Ages_25 | F23: C:\Essays\Geo_Dating\Dating\Future_Ages\Future_Ages_25.pdf
A24: 26 | B24: In situ Measurement of Re-Os Isotopes | C24: Geochimica et Cosmochimica Acta, 2002, Volume 66, Number 6, Pages 1037-1050 | D24: C:\Essays\Geo_Dating\Dating\Future_Ages\ | E24: Future_Ages_26 | F24: C:\Essays\Geo_Dating\Dating\Future_Ages\Future_Ages_26.pdf
A25: 1 | D25: C:\Essays\Geo_Dating\Dating\Future_Ages\ | E25: =("Future_0" & A25) -> Future_01 | F25: C:\Essays\Geo_Dating\Dating\Future_Ages\Future_01.pdf
A26: 2 | D26: C:\Essays\Geo_Dating\Dating\Future_Ages\ | E26: =("Future_0" & A26) -> Future_02 | F26: C:\Essays\Geo_Dating\Dating\Future_Ages\Future_02.pdf
C27: Earth Planetary Science Letters, 1990, Volume 99, Pages 362-379 | G27: =SUM(G2:G26) -> 211 | H27: 66 | I27: 20 | J27: 16 | K27: 0 | L27: 0 | M27: 196 | N27: 0 | O27: 0 | P27: 0 | Q27: 0 | R27: 67 | S27: 16 | T27: 22 | U27: 7

Sheet Future_01
A1: Sample | B1: CHUR | C1: DM
A2: Number | B2: Million Years | C2: Million Years
A3: 1 | B3: -20034 | C3: -31071
A4: 2 | B4: -7491 | C4: -2394
A5: 3 | B5: -6102 | C5: -2104
A6: 4 | B6: -2184 | C6: -546
A7: 5 | B7: -1220 | C7: -249
A8: 6 | B8: -1201 | C8: -90
A9: 7 | B9: -1038 | C9: 119
A10: 8 | B10: -836 | C10: 133
A11: 9 | B11: -685 | C11: 139
A12: 10 | B12: -655 | C12: 181
A13: 11 | B13: -483 | C13: 258
A14: 12 | B14: -200 | C14: 370
A15: 13 | B15: -137 | C15: 488
A16: 14 | B16: 5 | C16: 516
A17: 15 | B17: 36 | C17: 635
A18: 16 | B18: 423 | C18: 704
A19: 17 | B19: 500 | C19: 732
A20: 18 | B20: 577 | C20: 940
A21: 19 | B21: 582 | C21: 940
A22: 20 | B22: 625 | C22: 951
A23: 21 | B23: 686 | C23: 955
A24: 22 | B24: 820 | C24: 963
A25: 23 | B25: 919 | C25: 971
A26: 24 | B26: 983 | C26: 1021
A27: 25 | B27: 1020 | C27: 1062
A28: 26 | B28: 1077 | C28: 1153
A29: 27 | B29: 1083 | C29: 1215
A30: 28 | B30: 1147 | C30: 1233
A31: 29 | B31: 1211 | C31: 1292
A32: 30 | B32: 1240 | C32: 1392
A33: 31 | B33: 1324 | C33: 1432
A34: 32 | B34: 1328 | C34: 1455
A35: 33 | B35: 1344 | C35: 1464
A36: 34 | B36: 1391 | C36: 1471
A37: 35 | B37: 1413 | C37: 1482
A38: 36 | B38: 1430 | C38: 1500
A39: 37 | B39: 1461 | C39: 1549
A40: 38 | B40: 1479 | C40: 1549
A41: 39 | B41: 1492 | C41: 1559
A42: 40 | B42: 1515 | C42: 1602
A43: 41 | B43: 1520 | C43: 1606
A44: 42 | B44: 1538 | C44: 1615
A45: 43 | B45: 1549 | C45: 1648
A46: 44 | B46: 1580 | C46: 1650
A47: 45 | B47: 1616 | C47: 1663
A48: 46 | B48: 1711 | C48: 1665
A49: 47 | B49: 1714 | C49: 1674
A50: 48 | B50: 1720 | C50: 1704
A51: 49 | B51: 1784 | C51: 1723
A52: 50 | B52: 1789 | C52: 1740
A53: 51 | B53: 1814 | C53: 1756
A54: 52 | B54: 1842 | C54: 1779
A55: 53 | B55: 1844 | C55: 1859
A56: 54 | B56: 1850 | C56: 1871
A57: 55 | B57: 1902 | C57: 1878
A58: 56 | B58: 1908 | C58: 1884
A59: 57 | B59: 1925 | C59: 1893
A60: 58 | B60: 1966 | C60: 1912
A61: 59 | B61: 2081 | C61: 1958
A62: 60 | B62: 2121 | C62: 1962
A63: 61 | B63: 2286 | C63: 1971
A64: 62 | B64: 2320 | C64: 1982
A65: 63 | B65: 2519 | C65: 2020
A66: 64 | B66: 2543 | C66: 2031
A67: 65 | B67: 2592 | C67: 2073
A68: 66 | B68: 2630 | C68: 2078
A69: 67 | B69: 2761 | C69: 2085
A70: 68 | B70: 3454 | C70: 2103
A71: 69 | B71: 3663 | C71: 2103
A72: 70 | B72: 4009 | C72: 2305
A73: 71 | B73: 4153 | C73: 2594
A74: 72 | B74: 4527 | C74: 2611
A75: 73 | B75: 4849 | C75: 2711
A76: 74 | B76: 4960 | C76: 3242
A77: 75 | B77: 6510 | C77: 3590
A78: 76 | B78: 7049 | C78: 4139
A79: 77 | B79: 7816 | C79: 4318
A80: 78 | B80: 9751 | C80: 4580
A81: 79 | B81: 9789 | C81: 5525 | E81: 20 | F81: Older Earth
A82: 80 | B82: 13959 | C82: 5788 | E82: 8 | F82: Older Galaxy
A83: 81 | B83: 17711 | C83: 6598 | E83: 7 | F83: Older Universe
A84: 82 | B84: 18704 | C84: 7031 | E84: 19 | F84: Negative Ages
A85: 83 | B85: 38213 | C85: 7710
A86: 84 | B86: 76523 | C86: 40285
A87: 85 | B87: 76523 | C87: 64577
A88: Average | B88: =AVERAGE(B3:B87) -> 4122.741176 | C88: =AVERAGE(C3:C87) -> 2570.141176
A89: Maximum | B89: =MAX(B3:B88) -> 76523 | C89: =MAX(C3:C88) -> 64577
A90: Minimum | B90: =MIN(B3:B89) -> -20034 | C90: =MIN(C3:C89) -> -31071
B92: Million Years | C92: Million Years
A93: Average | B93: 4122.741176 | C93: 2570.141176
A94: Maximum | B94: 76523 | C94: 64577
A95: Minimum | B95: -20034 | C95: -31071

Sheet Future_02
B1: Sr Age | C1: Nd Age | D1: Nd Age | E1: Hf Age | F1: Hf Age | H1: Age | I1: Age | J1: Age | K1: Age
A2: Table 3 | B2: Billion Years | C2: Billion Years | D2: Billion Years | E2: Billion Years | F2: Billion Years | H2: Billion Years | I2: Billion Years | J2: Billion Years | K2: Billion Years
A3: RV07-02 | B3: -2.64 | C3: -22.42 | D3: -2.29 | E3: -10.02 | F3: -12.34 | H3: -22.42 | I3: -7 | J3: -1.51 | K3: 6.63
A4: RV07-03 | B4: -2.51 | C4: -9.9 | D4: -1.51 | E4: -7.15 | F4: -11.44 | H4: -12.34 | I4: -5.51 | J4: 5.07 | K4: 7.66
A5: RV07-09b | B5: -2.04 | C5: -0.73 | D5: 0.08 | E5: -7 | F5: -5.51 | H5: -11.44 | I5: -2.64 | J5: 5.41 | K5: 8.1
A6: RV07-13 | B6: -1.72 | C6: -0.48 | D6: 1 | E6: -4.77 | F6: -3.43 | H6: -10.02 | I6: -2.51 | J6: 6.27 | K6: 18.17
A7: RV07-20 | B7: -1.65 | C7: -0.14 | D7: 1.6 | E7: -2.34 | F7: -1.9 | H7: -9.9 | I7: -2.29 | J7: 6.36 | K7: 19.31
A8: RV07-01 | B8: -1.64 | C8: 1.12 | D8: 1.62 | E8: -1.97 | F8: -1.35 | H8: -7.15 | I8: -2.04 | J8: 6.57 | K8: 19.87
A9: RV07-07 | B9: -1.63 | C9: 1.12 | D9: 2.09 | E9: -1.57 | F9: -0.14
A10: RV07-11 | B10: -1.61 | C10: 1.69 | D10: 2.1 | E10: -1.11 | F10: 1.37
A11: RV07-14 | B11: -1.58 | C11: 1.7 | D11: 2.54 | E11: -0.67 | F11: 1.47
A12: RV07-16 | B12: -1.57 | C12: 1.7 | D12: 2.6 | E12: -0.47 | F12: 1.5
A13: RV07-18 | B13: -1.56 | C13: 2.27 | D13: 2.71 | E13: 0.08 | F13: 1.9
A14: RV07-19 | B14: -1.55 | C14: 2.41 | D14: 2.83 | E14: 0.98 | F14: 2.02
A15: RV07-22 | B15: -1.41 | C15: 2.71 | D15: 2.85 | E15: 1.21 | F15: 2.13
A16: RV07-29b | B16: -1.35 | C16: 2.82 | D16: 2.92 | E16: 1.41 | F16: 2.32
A17: HRV-247 | B17: -1.13 | C17: 2.85 | D17: 2.97 | E17: 1.56 | F17: 4.49
A18: HRV-77b | B18: 1.29 | C18: 2.96 | D18: 3.71 | E18: 1.57 | F18: 5.41
A19: RV07-17 | B19: 2.07 | C19: 2.99 | D19: 4.24 | E19: 1.6 | F19: 18.17
A20: RV07-12 | B20: 2.6 | C20: 5.07 | D20: 6.27 | E20: 2.15 | F20: 19.31
A21: RV73-12 | B21: 2.77 | C21: 6.36 | D21: 7.66 | E21: 2.35 | F21: 19.87
A22: RV07-08 | B22: 3.26 | C22: 6.63 | D22: 8.1 | E22: 4.41
A23: BD1191 | E23: 6.57
A24: DEJ5
A25: Average | B25: =AVERAGE(B3:B24) -> -0.68 | C25: =AVERAGE(C3:C24) -> 0.5365 | D25: =AVERAGE(D3:D24) -> 2.7045 | E25: =AVERAGE(E3:E24) -> -0.6276190476 | F25: =AVERAGE(F3:F24) -> 2.307894737
A26: Maximum | B26: =MAX(B3:B25) -> 3.26 | C26: =MAX(C3:C25) -> 6.63 | D26: =MAX(D3:D25) -> 8.1 | E26: =MAX(E3:E25) -> 6.57 | F26: =MAX(F3:F25) -> 19.87
A27: Minimum | B27: =MIN(B3:B26) -> -2.64 | C27: =MIN(C3:C26) -> -22.42 | D27: =MIN(D3:D26) -> -2.29 | E27: =MIN(E3:E26) -> -10.02 | F27: =MIN(F3:F26) -> -12.34
A30: Rubidium | B30: Table 2 | J30: Table 2
A31: Strontium | B31: Initial | C31: Today | D31: Today | E31: The Ratio | F31: Half | G31: Decay | H31: 2.303/Delta | I31: Age | J31: Age | K31: Age
A32: Dating | B32: 87Sr/86Sr | C32: 87Sr/86Sr | D32: 87Rb/86Sr | E32: Plus One | F32: Life | G32: Constant | H32: Constant | I32: Years | J32: Million Years | K32: Billion Years
A33: RV07-03 | B33: 0.707859 | C33: 0.707964 | D33: 0.06 | E33: =1+((C33-B33)/D33) -> 1.00175 | F33: 48800000000 | G33: =(0.693/F33) -> 1.420081967e-11 | H33: =(2.303/G33) -> 1.621737374e+11 | I33: =(LOG(E33))*(H33) -> 123146806.6 | J33: =(I33/1000000) -> 123.1468066 | K33: =(J33/1000) -> 0.1231468066
A34: RV07-09 | B34: 0.706478 | C34: 0.706833 | D34: 0.2 | E34: =1+((C34-B34)/D34) -> 1.001775 | F34: 48800000000 | G34: =(0.693/F34) -> 1.420081967e-11 | H34: =(2.303/G34) -> 1.621737374e+11 | I34: =(LOG(E34))*(H34) -> 124904487.7 | J34: =(I34/1000000) -> 124.9044877 | K34: 0.1249044877
A35: RV07-13 | B35: 0.707053 | C35: 0.707188 | D35: 0.07 | E35: 1.001928571 | F35: 48800000000 | G35: 1.420081967e-11 | H35: 1.621737374e+11 | I35: 135700709.2 | J35: 135.7007092 | K35: 0.1357007092
A36: RV07-20 | B36: 0.707723 | C36: 0.707822 | D36: 0.05 | E36: 1.00198 | F36: 48800000000 | G36: 1.420081967e-11 | H36: 1.621737374e+11 | I36: 139315818.1 | J36: 139.3158181 | K36: 0.1393158181
A37: RV07-01 | B37: 0.707085 | C37: 0.707175 | D37: 0.05 | E37: 1.0018 | F37: 48800000000 | G37: 1.420081967e-11 | H37: 1.621737374e+11 | I37: 126662124.9 | J37: 126.6621249 | K37: 0.1266621249
A38: RV07-07 | B38: 0.707488 | C38: 0.707734 | D38: 0.14 | E38: 1.001757143 | F38: 48800000000 | G38: 1.420081967e-11 | H38: 1.621737374e+11 | I38: 123649005.7 | J38: 123.6490057 | K38: 0.1236490057
A39: RV07-11 | B39: 0.706694 | C39: 0.706881 | D39: 0.1 | E39: 1.00187 | F39: 48800000000 | G39: 1.420081967e-11 | H39: 1.621737374e+11 | I39: 131583275.7 | J39: 131.5832757 | K39: 0.1315832757
A40: RV07-14 | B40: 0.705919 | C40: 0.706324 | D40: 0.22 | E40: 1.001840909 | F40: 48800000000 | G40: 1.420081967e-11 | H40: 1.621737374e+11 | I40: 129538163.9 | J40: 129.5381639 | K40: 0.1295381639
A41: RV07-16 | B41: 0.706629 | C41: 0.70664 | D41: 0.01 | E41: 1.0011 | F41: 48800000000 | G41: 1.420081967e-11 | H41: 1.621737374e+11 | I41: 77431695.55 | J41: 77.43169555 | K41: 0.07743169555
A42: RV07-22 | B42: 0.706152 | C42: 0.707451 | D42: 0.71 | E42: 1.001829577 | F42: 48800000000 | G42: 1.420081967e-11 | H42: 1.621737374e+11 | I42: 128741526.4 | J42: 128.7415264 | K42: 0.1287415264
A43: HRV-247 | B43: 0.70614 | C43: 0.70615 | D43: 0.01 | E43: 1.001 | F43: 48800000000 | G43: 1.420081967e-11 | H43: 1.621737374e+11 | I43: 70395967.13 | J43: 70.39596713 | K43: 0.07039596713
A44: RV07-12 | B44: 0.704231 | C44: 0.70588 | D44: 0.91 | E44: 1.001812088 | F44: 48800000000 | G44: 1.420081967e-11 | H44: 1.621737374e+11 | I44: 127511955.7 | J44: 127.5119557 | K44: 0.1275119557
A45: RV07-08 | B45: 0.701071 | C45: 0.706502 | D45: 2.99 | E45: 1.001816388 | F45: 48800000000 | G45: 1.420081967e-11 | H45: 1.621737374e+11 | I45: 127814264.6 | J45: 127.8142646 | K45: 0.1278142646
A46: RV07-02 | B46: 0.706307 | C46: 0.706307 | D46: 0.0003 | E46: 1 | F46: 48800000000 | G46: 1.420081967e-11 | H46: 1.621737374e+11 | I46: 0 | J46: . | K46: .
A47: RV07-03 | B47: 0.707489 | C47: 0.707489 | D47: 0.0003 | E47: 1 | F47: 48800000000 | G47: 1.420081967e-11 | H47: 1.621737374e+11 | I47: 0 | J47: . | K47: .
A48: RV07-09 | B48: 0.706371 | C48: 0.706371 | D48: 0.0002 | E48: 1 | F48: 48800000000 | G48: 1.420081967e-11 | H48: 1.621737374e+11 | I48: 0 | J48: . | K48: .
A49: RV07-13 | B49: 0.706347 | C49: 0.706347 | D49: 0.0001 | E49: 1 | F49: 48800000000 | G49: 1.420081967e-11 | H49: 1.621737374e+11 | I49: 0 | J49: . | K49: .
A50: RV07-01 | B50: 0.706372 | C50: 0.706372 | D50: 0.0003 | E50: 1 | F50: 48800000000 | G50: 1.420081967e-11 | H50: 1.621737374e+11 | I50: 0 | J50: . | K50: .
A51: RV07-07 | B51: 0.706247 | C51: 0.706248 | D51: 0.0003 | E51: 1.003333333 | F51: 48800000000 | G51: 1.420081967e-11 | H51: 1.621737374e+11 | I51: 234380114 | J51: 234.380114 | K51: 0.234380114
A52: RV07-11 | B52: 0.706267 | C52: 0.706268 | D52: 0.0005 | E52: 1.002 | F52: 48800000000 | G52: 1.420081967e-11 | H52: 1.621737374e+11 | I52: 140721643.7 | J52: 140.7216437 | K52: 0.1407216437
A53: RV07-14 | B53: 0.706223 | C53: 0.706223 | D53: 0 | F53: 48800000000 | G53: 1.420081967e-11 | H53: 1.621737374e+11 | J53: . | K53: .
A54: RV07-18 | B54: 0.706295 | C54: 0.706296 | D54: 0.0003 | E54: 1.003333333 | F54: 48800000000 | G54: 1.420081967e-11 | H54: 1.621737374e+11 | I54: 234380114 | J54: 234.380114 | K54: 0.234380114
A55: RV07-19 | B55: 0.706108 | C55: 0.706109 | D55: 0.0003 | E55: 1.003333333 | F55: 48800000000 | G55: 1.420081967e-11 | H55: 1.621737374e+11 | I55: 234380114 | J55: 234.380114 | K55: 0.234380114
A56: RV07-29 | B56: 0.706383 | C56: 0.706383 | D56: 0.0003 | E56: 1 | F56: 48800000000 | G56: 1.420081967e-11 | H56: 1.621737374e+11 | I56: 0 | J56: . | K56: .
A57: HRV-247 | B57: 0.70593 | C57: 0.70593 | D57: 0.0001 | E57: 1 | F57: 48800000000 | G57: 1.420081967e-11 | H57: 1.621737374e+11 | I57: 0 | J57: . | K57: .
A58: HRV-77b | B58: 0.706789 | C58: 0.70679 | D58: 0.0009 | E58: 1.001111111 | F58: 48800000000 | G58: 1.420081967e-11 | H58: 1.621737374e+11 | I58: 78213399.77 | J58: 78.21339977 | K58: 0.07821339977
A59: HRV-77m | B59: 0.70294 | C59: 0.70294 | D59: 0.0009 | E59: 1 | F59: 48800000000 | G59: 1.420081967e-11 | H59: 1.621737374e+11 | I59: 0 | J59: . | K59: .
A60: RV07-12 | B60: 0.70134 | C60: 0.701344 | D60: 0.0021 | E60: 1.001904762 | F60: 48800000000 | G60: 1.420081967e-11 | H60: 1.621737374e+11 | I60: 134026984.8 | J60: 134.0269848 | K60: 0.1340269848
A61: RV73-12 | B61: 0.70294 | C61: 0.703233 | D61: 0.1612 | E61: 1.001817618 | F61: 48800000000 | G61: 1.420081967e-11 | H61: 1.621737374e+11 | I61: 127900731.2 | J61: 127.9007312 | K61: 0.1279007312
A62: RV07-08 | B62: 0.702849 | C62: 0.702849 | D62: 0.0003 | E62: 1 | F62: 48800000000 | G62: 1.420081967e-11 | H62: 1.621737374e+11 | I62: 0 | J62: . | K62: .
A63: RV07-02 | B63: 0.706309 | C63: 0.70631 | D63: 0.0003 | E63: 1.003333333 | F63: 48800000000 | G63: 1.420081967e-11 | H63: 1.621737374e+11 | I63: =(LOG(E63))*(H63) -> 234380114 | J63: =(I63/1000000) -> 234.380114 | K63: 0.234380114
A64: RV07-03 | B64: 0.707491 | C64: 0.707492 | D64: 0.0007 | E64: 1.001428571 | F64: 48800000000 | G64: 1.420081967e-11 | H64: 1.621737374e+11 | I64: 100544141.6 | J64: 100.5441416 | K64: 0.1005441416
A65: RV07-09 | B65: 0.706371 | C65: 0.706371 | D65: 0.0004 | E65: 1 | F65: 48800000000 | G65: 1.420081967e-11 | H65: 1.621737374e+11 | I65: 0 | J65: . | K65: .
A66: RV07-13 | B66: 0.706348 | C66: 0.706349 | D66: 0.0003 | E66: 1.003333333 | F66: 48800000000 | G66: 1.420081967e-11 | H66: 1.621737374e+11 | I66: 234380114 | J66: 234.380114 | K66: 0.234380114
A67: RV07-20 | B67: 0.70736 | C67: 0.707361 | D67: 0.0002 | E67: 1.005 | F67: 48800000000 | G67: 1.420081967e-11 | H67: 1.621737374e+11 | I67: 351278330.4 | J67: 351.2783304 | K67: 0.3512783304
A68: RV07-01 | B68: 0.706374 | C68: 0.706374 | D68: 0.0004 | E68: 1 | F68: 48800000000 | G68: 1.420081967e-11 | H68: 1.621737374e+11 | I68: 0 | J68: . | K68: .
A69: RV07-07 | B69: 0.706253 | C69: 0.706254 | D69: 0.0009 | E69: 1.001111111 | F69: 48800000000 | G69: 1.420081967e-11 | H69: 1.621737374e+11 | I69: 78213399.77 | J69: 78.21339977 | K69: 0.07821339977
A70: RV07-11 | B70: 0.706269 | C70: 0.706271 | D70: 0.001 | E70: 1.002 | F70: 48800000000 | G70: 1.420081967e-11 | H70: 1.621737374e+11 | I70: 140721643.7 | J70: 140.7216437 | K70: 0.1407216437
A71: RV07-14 | B71: 0.706219 | C71: 0.706224 | D71: 0.0029 | E71: 1.001724138 | F71: 48800000000 | G71: 1.420081967e-11 | H71: 1.621737374e+11 | I71: 121328469.7 | J71: 121.3284697 | K71: 0.1213284697
A72: RV07-16 | B72: 0.706049 | C72: 0.706049 | D72: 0.0001 | E72: 1 | F72: 48800000000 | G72: 1.420081967e-11 | H72: 1.621737374e+11 | I72: 0 | J72: . | K72: .
A73: RV07-18 | B73: 0.7063 | C73: 0.706301 | D73: 0.0003 | E73: 1.003333333 | F73: 48800000000 | G73: 1.420081967e-11 | H73: 1.621737374e+11 | I73: 234380114 | J73: 234.380114 | K73: =(J73/1000) -> 0.234380114
A74: RV07-19 | B74: 0.70612 | C74: 0.706121 | D74: 0.0003 | E74: =1+((C74-B74)/D74) -> 1.003333333 | F74: 48800000000 | G74: =(0.693/F74) -> 1.420081967e-11 | H74: =(2.303/G74) -> 1.621737374e+11 | I74: 234380114 | J74: 234.380114 | K74: 0.234380114
A75: RV07-22 | B75: 0.706341 | C75: 0.706351 | D75: 0.0055 | E75: 1.001818182 | F75: 48800000000 | G75: 1.420081967e-11 | H75: 1.621737374e+11 | I75: 127940379 | J75: 127.940379 | K75: 0.127940379
A76: RV07-29 | B76: 0.706386 | C76: 0.706387 | D76: 0.0003 | E76: 1.003333333 | F76: 48800000000 | G76: 1.420081967e-11 | H76: 1.621737374e+11 | I76: 234380114 | J76: 234.380114 | K76: 0.234380114
A77: HRV77b | B77: 0.706789 | C77: 0.706792 | D77: 0.0016 | E77: 1.001875 | F77: 48800000000 | G77: 1.420081967e-11 | H77: 1.621737374e+11 | I77: 131934773.4 | J77: 131.9347734 | K77: 0.1319347734
A78: RV07-12 | B78: 0.701344 | C78: 0.70135 | D78: 0.0033 | E78: 1.001818182 | F78: 48800000000 | G78: 1.420081967e-11 | H78: 1.621737374e+11 | I78: 127940379 | J78: 127.940379 | K78: 0.127940379
A79: RV73-12 | B79: 0.702942 | C79: 0.703235 | D79: 0.161 | E79: 1.001819876 | F79: 48800000000 | G79: 1.420081967e-11 | H79: 1.621737374e+11 | I79: 128059469.8 | J79: 128.0594698 | K79: 0.1280594698
A80: RV07-08 | B80: 0.70282 | C80: 0.702908 | D80: 0.0484 | E80: 1.001818182 | F80: 48800000000 | G80: 1.420081967e-11 | H80: 1.621737374e+11 | I80: 127940379 | J80: 127.940379 | K80: 0.127940379
A81: DEJ-5 | B81: 0.702297 | C81: 0.702313 | D81: 0.0088 | E81: 1.001818182 | F81: 48800000000 | G81: 1.420081967e-11 | H81: 1.621737374e+11 | I81: 127940379 | J81: 127.940379 | K81: 0.127940379
A84: Lutetium | B84: Table 2 | K84: Table 2
A85: Hafnium | B85: Initial | C85: Today | D85: Today | E85: The Ratio | F85: Half | G85: Decay | H85: 2.303/Delta | I85: Age | J85: Age | K85: Age
A86: Dating | B86: 176Hf/177Hf | C86: 176Hf/177Hf | D86: 176Lu/177Hf | E86: Plus One | F86: Life | G86: Constant | H86: Constant | I86: Years | J86: Million Years | K86: Billion Years
A87: RV07-02 | B87: 0.282315 | C87: 0.282683 | D87: 0.15 | E87: =1+((C87-B87)/D87) -> 1.002453333 | F87: 37300000000 | G87: =(0.693/F87) -> 1.857908847e-11 | H87: =(2.303/G87) -> 1.239565657e+11 | I87: =(LOG(E87))*(H87) -> 131910150.3 | J87: =(I87/1000000) -> 131.9101503 | K87: =(J87/1000) -> 0.1319101503
A88: RV07-03 | B88: 0.282229 | C88: 0.282509 | D88: 0.11 | E88: =1+((C88-B88)/D88) -> 1.002545455 | F88: 37300000000 | G88: =(0.693/F88) -> 1.857908847e-11 | H88: =(2.303/G88) -> 1.239565657e+11 | I88: =(LOG(E88))*(H88) -> 136857007.5 | J88: =(I88/1000000) -> 136.8570075 | K88: =(J88/1000) -> 0.1368570075
A89: RV07-09 | B89: 0.282305 | C89: 0.282766 | D89: 0.19 | E89: =1+((C89-B89)/D89) -> 1.002426316 | F89: 37300000000 | G89: 1.857908847e-11 | H89: =(2.303/G89) -> 1.239565657e+11 | I89: =(LOG(E89))*(H89) -> 130459237.2 | J89: =(I89/1000000) -> 130.4592372 | K89: =(J89/1000) -> 0.1304592372
A90: RV07-13 | B90: 0.282297 | C90: 0.282893 | D90: 0.24 | E90: =1+((C90-B90)/D90) -> 1.002483333 | F90: 37300000000 | G90: =(0.693/F90) -> 1.857908847e-11 | H90: =(2.303/G90) -> 1.239565657e+11 | I90: =(LOG(E90))*(H90) -> 133521183.3 | J90: =(I90/1000000) -> 133.5211833 | K90: =(J90/1000) -> 0.1335211833
A91: RV07-20 | B91: 0.282545 | C91: 0.283161 | D91: 0.25 | E91: 1.002464 | F91: 37300000000 | G91: 1.857908847e-11 | H91: 1.239565657e+11 | I91: 132482967.6 | J91: 132.4829676 | K91: 0.1324829676
A92: RVF-6 | B92: 0.281766 | C92: 0.28239 | D92: 0.25 | E92: 1.002496 | F92: 37300000000 | G92: 1.857908847e-11 | H92: 1.239565657e+11 | I92: 134201382.8 | J92: 134.2013828 | K92: 0.1342013828
A93: RVF-8 | B93: 0.282181 | C93: 0.283081 | D93: 0.36 | E93: 1.0025 | F93: 37300000000 | G93: 1.857908847e-11 | H93: 1.239565657e+11 | I93: 134416180.8 | J93: 134.4161808 | K93: 0.1344161808
A94: RV07-01 | B94: 0.282127 | C94: 0.282476 | D94: 0.14 | E94: 1.002492857 | F94: 37300000000 | G94: 1.857908847e-11 | H94: 1.239565657e+11 | I94: 134032612.3 | J94: 134.0326123 | K94: 0.1340326123
A95: RV07-07 | B95: 0.282236 | C95: 0.282613 | D95: 0.15 | E95: 1.002513333 | F95: 37300000000 | G95: 1.857908847e-11 | H95: 1.239565657e+11 | I95: 135132168.1 | J95: 135.1321681 | K95: 0.1351321681
A96: RV07-11 | B96: 0.282272 | C96: 0.282644 | D96: 0.15 | E96: 1.00248 | F96: 37300000000 | G96: 1.857908847e-11 | H96: 1.239565657e+11 | I96: 133342182.1 | J96: 133.3421821 | K96: 0.1333421821
A97: RV07-14 | B97: 0.28226 | C97: 0.282557 | D97: 0.12 | E97: 1.002475 | F97: 37300000000 | G97: 1.857908847e-11 | H97: 1.239565657e+11 | I97: 133073679 | J97: 133.073679 | K97: 0.133073679
A98: RV07-16 | B98: 0.282193 | C98: 0.282321 | D98: 0.05 | E98: 1.00256 | F98: 37300000000 | G98: 1.857908847e-11 | H98: 1.239565657e+11 | I98: 137638048.7 | J98: 137.6380487 | K98: 0.1376380487
A99: RV07-18 | B99: 0.282463 | C99: 0.28255 | D99: 0.03 | E99: 1.0029 | F99: 37300000000 | G99: 1.857908847e-11 | H99: 1.239565657e+11 | I99: 155891658.3 | J99: 155.8916583 | K99: 0.1558916583
A100: RV07-19 | B100: 0.282224 | C100: 0.282438 | D100: 0.09 | E100: 1.002377778 | F100: 37300000000 | G100: 1.857908847e-11 | H100: 1.239565657e+11 | I100: 127852520.2 | J100: 127.8525202 | K100: 0.1278525202
A101: RV07-22 | B101: 0.282352 | C101: 0.282628 | D101: 0.11 | E101: 1.002509091 | F101: 37300000000 | G101: 1.857908847e-11 | H101: 1.239565657e+11 | I101: 134904355 | J101: 134.904355 | K101: 0.134904355
A102: RV07-29 | B102: 0.282185 | C102: 0.282451 | D102: 0.11 | E102: 1.002418182 | F102: 37300000000 | G102: 1.857908847e-11 | H102: 1.239565657e+11 | I102: 130022414 | J102: 130.022414 | K102: 0.130022414
A103: DEJ02 | B103: 0.282311 | C103: 0.282413 | D103: 0.04 | E103: 1.00255 | F103: 37300000000 | G103: 1.857908847e-11 | H103: 1.239565657e+11 | I103: 137101084.1 | J103: 137.1010841 | K103: 0.1371010841
A104: DEJ-03 | B104: 0.282215 | C104: 0.282494 | D104: 0.11 | E104: 1.002536364 | F104: 37300000000 | G104: 1.857908847e-11 | H104: 1.239565657e+11 | I104: 136368851 | J104: 136.368851 | K104: 0.136368851
A105: DJ-0288 | B105: 0.281692 | C105: 0.281781 | D105: 0.04 | E105: 1.002225 | F105: 37300000000 | G105: 1.857908847e-11 | H105: 1.239565657e+11 | I105: 119646818.9 | J105: 119.6468189 | K105: 0.1196468189
A106: RV07-12 | B106: 0.302144 | C106: 0.30418 | D106: 0.82 | E106: 1.002482927 | F106: 37300000000 | G106: 1.857908847e-11 | H106: 1.239565657e+11 | I106: 133499353.9 | J106: 133.4993539 | K106: 0.1334993539
A107: RV73-12 | B107: 0.325008 | C107: 0.329891 | D107: 1.96 | E107: 1.002491327 | F107: 37300000000 | G107: 1.857908847e-11 | H107: 1.239565657e+11 | I107: 133950418.7 | J107: 133.9504187 | K107: 0.1339504187
A108: RV07-08 | B108: 0.369851 | C108: 0.377066 | D108: 2.9 | E108: 1.002487931 | F108: 37300000000 | G108: 1.857908847e-11 | H108: 1.239565657e+11 | I108: 133768080.7 | J108: 133.7680807 | K108: 0.1337680807
A109: BD-1191 | B109: 0.355707 | C109: 0.361708 | D109: 2.41 | E109: 1.002490041 | F109: 37300000000 | G109: 1.857908847e-11 | H109: 1.239565657e+11 | I109: 133881412.3 | J109: 133.8814123 | K109: 0.1338814123
A110: DEJ-5 | B110: 0.304178 | C110: 0.306277 | D110: 0.84 | E110: 1.00249881 | F110: 37300000000 | G110: 1.857908847e-11 | H110: 1.239565657e+11 | I110: 134352252.9 | J110: 134.3522529 | K110: 0.1343522529
A111: RV07-02 | B111: 0.282253 | C111: 0.28226 | D111: 0.003 | E111: 1.002333333 | F111: 37300000000 | G111: 1.857908847e-11 | H111: 1.239565657e+11 | I111: 125465536.1 | J111: 125.4655361 | K111: 0.1254655361
A112: RV07-03 | B112: 0.28225 | C112: 0.282252 | D112: 0.001 | E112: 1.002 | F112: 37300000000 | G112: 1.857908847e-11 | H112: 1.239565657e+11 | I112: 107559781 | J112: 107.559781 | K112: 0.107559781
A113: RV07-09 | B113: 0.282249 | C113: 0.282256 | D113: 0.003 | E113: 1.002333333 | F113: 37300000000 | G113: 1.857908847e-11 | H113: 1.239565657e+11 | I113: 125465536.1 | J113: 125.4655361 | K113: 0.1254655361
A114: RV07-13 | B114: 0.28224 | C114: 0.282245 | D114: 0.002 | E114: 1.0025 | F114: 37300000000 | G114: 1.857908847e-11 | H114: 1.239565657e+11 | I114: 134416180.8 | J114: 134.4161808 | K114: 0.1344161808
A115: RV07-20 | B115: 0.28264 | C115: 0.282655 | D115: 0.006 | E115: 1.0025 | F115: 37300000000 | G115: 1.857908847e-11 | H115: 1.239565657e+11 | I115: 134416180.8 | J115: 134.4161808 | K115: 0.1344161808
A116: RVF-6 | B116: 0.282689 | C116: 0.282692 | D116: 0.001 | E116: 1.003 | F116: 37300000000 | G116: 1.857908847e-11 | H116: 1.239565657e+11 | I116: 161259189.4 | J116: 161.2591894 | K116: 0.1612591894
A117: RVF-8 | B117: 0.282783 | C117: 0.282789 | D117: 0.002 | E117: 1.003 | F117: 37300000000 | G117: 1.857908847e-11 | H117: 1.239565657e+11 | I117: 161259189.4 | J117: 161.2591894 | K117: 0.1612591894
A118: RV07-01 | B118: 0.282169 | C118: 0.282173 | D118: 0.002 | E118: 1.002 | F118: 37300000000 | G118: 1.857908847e-11 | H118: 1.239565657e+11 | I118: 107559781 | J118: 107.559781 | K118: 0.107559781
A119: RV07-07 | D119: 0.001 | E119: 1 | F119: 37300000000 | G119: 1.857908847e-11 | H119: 1.239565657e+11 | I119: 0 | J119: . | K119: .
A120: RV07-11 | B120: 0.282228 | C120: 0.282236 | D120: 0.003 | E120: 1.002666667 | F120: 37300000000 | G120: 1.857908847e-11 | H120: 1.239565657e+11 | I120: 143365337.6 | J120: 143.3653376 | K120: 0.1433653376
A121: RV07-14 | B121: 0.28226 | C121: 0.282262 | D121: 0.001 | E121: 1.002 | F121: 37300000000 | G121: 1.857908847e-11 | H121: 1.239565657e+11 | I121: 107559781 | J121: 107.559781 | K121: 0.107559781
A122: RV07-16 | B122: 0.282194 | C122: 0.282196 | D122: 0.001 | E122: 1.002 | F122: 37300000000 | G122: 1.857908847e-11 | H122: 1.239565657e+11 | I122: 107559781 | J122: 107.559781 | K122: 0.107559781
A123: RV07-18 | B123: 0.282233 | C123: 0.282235 | D123: 0.001 | E123: 1.002 | F123: 37300000000 | G123: 1.857908847e-11 | H123: 1.239565657e+11 | I123: 107559781 | J123: 107.559781 | K123: 0.107559781
A124: RV07-19 | B124: 0.282246 | C124: 0.282247 | D124: 0.001 | E124: 1.001 | F124: 37300000000 | G124: 1.857908847e-11 | H124: 1.239565657e+11 | I124: 53806753.57 | J124: 53.80675357 | K124: 0.05380675357
A125: RV07-22 | B125: 0.282257 | C125: 0.282259 | D125: 0.001 | E125: 1.002 | F125: 37300000000 | G125: 1.857908847e-11 | H125: 1.239565657e+11 | I125: 107559781 | J125: 107.559781 | K125: 0.107559781
A126: RV07-29 | B126: 0.282178 | C126: 0.282185 | D126: 0.003 | E126: 1.002333333 | F126: 37300000000 | G126: 1.857908847e-11 | H126: 1.239565657e+11 | I126: 125465536.1 | J126: 125.4655361 | K126: 0.1254655361
A127: HRV-247 | B127: 0.282771 | C127: 0.282915 | D127: 0.058 | E127: 1.002482759 | F127: 37300000000 | G127: 1.857908847e-11 | H127: 1.239565657e+11 | I127: 133490321.1 | J127: 133.4903211 | K127: 0.1334903211
A128: DEJ-03 | B128: 0.282219 | C128: 0.282222 | D128: 0.001 | E128: 1.003 | F128: 37300000000 | G128: 1.857908847e-11 | H128: 1.239565657e+11 | I128: 161259189.4 | J128: 161.2591894 | K128: 0.1612591894
A129: DJ-0288 | B129: 0.28201 | C129: 0.282012 | D129: 0.001 | E129: 1.002 | F129: 37300000000 | G129: 1.857908847e-11 | H129: 1.239565657e+11 | I129: 107559781 | J129: 107.559781 | K129: 0.107559781
A130: HRV-77b | B130: 0.282377 | C130: 0.282381 | D130: 0.002 | E130: 1.002 | F130: 37300000000 | G130: 1.857908847e-11 | H130: 1.239565657e+11 | I130: 107559781 | J130: 107.559781 | K130: 0.107559781
A131: RV07-12 | B131: 0.282247 | C131: 0.282251 | D131: 0.002 | E131: 1.002 | F131: 37300000000 | G131: 1.857908847e-11 | H131: 1.239565657e+11 | I131: 107559781 | J131: 107.559781 | K131: 0.107559781
A132: RV73-12 | B132: 0.283988 | C132: 0.284003 | D132: 0.006 | E132: 1.0025 | F132: 37300000000 | G132: 1.857908847e-11 | H132: 1.239565657e+11 | I132: 134416180.8 | J132: 134.4161808 | K132: 0.1344161808
A133: RV07-08 | B133: 0.287314 | C133: 0.287319 | D133: 0.002 | E133: 1.0025 | F133: 37300000000 | G133: 1.857908847e-11 | H133: 1.239565657e+11 | I133: 134416180.8 | J133: 134.4161808 | K133: 0.1344161808
A134: BD-1191 | B134: 0.288405 | C134: 0.288413 | D134: 0.003 | E134: 1.002666667 | F134: 37300000000 | G134: 1.857908847e-11 | H134: 1.239565657e+11 | I134: 143365337.6 | J134: 143.3653376 | K134: 0.1433653376
A135: DEJ-5 | B135: 0.282281 | C135: 0.282286 | D135: 0.002 | E135: 1.0025 | F135: 37300000000 | G135: 1.857908847e-11 | H135: 1.239565657e+11 | I135: 134416180.8 | J135: 134.4161808 | K135: 0.1344161808
A136: RV07-02 | B136: 0.282264 | C136: 0.282335 | D136: 0.03 | E136: 1.002366667 | F136: 37300000000 | G136: 1.857908847e-11 | H136: 1.239565657e+11 | I136: 127255784.1 | J136: 127.2557841 | K136: 0.1272557841
A137: RV07-03 | B137: 0.28224 | C137: 0.28237 | D137: 0.05 | E137: 1.0026 | F137: 37300000000 | G137: 1.857908847e-11 | H137: 1.239565657e+11 | I137: 139785853.4 | J137: 139.7858534 | K137: 0.1397858534
A138: RV07-09 | B138: 0.282259 | C138: 0.28235 | D138: 0.04 | E138: 1.002275 | F138: 37300000000 | G138: 1.857908847e-11 | H138: 1.239565657e+11 | I138: 122332458.9 | J138: 122.3324589 | K138: 0.1223324589
A139: RV07-13 | B139: 0.28225 | C139: 0.282356 | D139: 0.04 | E139: 1.00265 | F139: 37300000000 | G139: 1.857908847e-11 | H139: 1.239565657e+11 | I139: 142470488.9 | J139: 142.4704889 | K139: 0.1424704889
A140: RV07-20 | B140: 0.282584 | C140: 0.282955 | D140: 0.15 | E140: 1.002473333 | F140: 37300000000 | G140: 1.857908847e-11 | H140: 1.239565657e+11 | I140: 132984177.7 | J140: 132.9841777 | K140: 0.1329841777
A141: RVF-6 | B141: 0.282515 | C141: 0.282635 | D141: 0.05 | E141: 1.0024 | F141: 37300000000 | G141: 1.857908847e-11 | H141: 1.239565657e+11 | I141: 129045972.6 | J141: 129.0459726 | K141: 0.1290459726
A142: RVF-8 | B142: 0.282676 | C142: 0.282841 | D142: 0.07 | E142: 1.002357143 | F142: 37300000000 | G142: 1.857908847e-11 | H142: 1.239565657e+11 | I142: 126744290.8 | J142: 126.7442908 | K142: 0.1267442908
A143: RV07-01 | B143: 0.282158 | C143: 0.282248 | D143: 0.04 | E143: 1.00225 | F143: 37300000000 | G143: 1.857908847e-11 | H143: 1.239565657e+11 | I143: 120989655.7 | J143: 120.9896557 | K143: 0.1209896557
A144: RV07-11 | B144: 0.282246 | C144: 0.2824 | D144: 0.06 | E144: 1.002566667 | F144: 37300000000 | G144: 1.857908847e-11 | H144: 1.239565657e+11 | I144: 137996022.1 | J144: 137.9960221 | K144: 0.1379960221
A145: RV07-14 | B145: 0.28226 | C145: 0.282435 | D145: 0.07 | E145: 1.0025 | F145: 37300000000 | G145: 1.857908847e-11 | H145: 1.239565657e+11 | I145: 134416180.8 | J145: 134.4161808 | K145: 0.1344161808
A146: RV07-16 | B146: 0.282194 | C146: 0.282267 | D146: 0.03 | E146: 1.002433333 | F146: 37300000000 | G146: 1.857908847e-11 | H146: 1.239565657e+11 | I146: 130836101.5 | J146: 130.8361015 | K146: 0.1308361015
A147: RV07-18 | B147: 0.282339 | C147: 0.28238 | D147: 0.02 | E147: 1.00205 | F147: 37300000000 | G147: 1.857908847e-11 | H147: 1.239565657e+11 | I147: 110246023.9 | J147: 110.2460239 | K147: 0.1102460239
A148: RV07-19 | B148: 0.282234 | C148: 0.282351 | D148: 0.05 | E148: 1.00234 | F148: 37300000000 | G148: 1.857908847e-11 | H148: 1.239565657e+11 | I148: 125823590.5 | J148: 125.8235905 | K148: 0.1258235905
A149: RV07-22 | B149: 0.282287 | C149: 0.282378 | D149: 0.04 | E149: =1+((C149-B149)/D149) -> 1.002275 | F149: 37300000000 | G149: =(0.693/F149) -> 1.857908847e-11 | H149: =(2.303/G149) -> 1.239565657e+11 | I149: =(LOG(E149))*(H149) -> 122332458.9 | J149: =(I149/1000000) -> 122.3324589 | K149: =(J149/1000) -> 0.1223324589
A150: RV07-29 | B150: 0.282181 | C150: 0.282277 | D150: 0.04 | E150: 1.0024 | F150: 37300000000 | G150: 1.857908847e-11 | H150: 1.239565657e+11 | I150: 129045972.6 | J150: 129.0459726 | K150: 0.1290459726
A151: HRV-247 | B151: 0.282701 | C151: 0.282751 | D151: 0.02 | E151: 1.0025 | F151: 37300000000 | G151: 1.857908847e-11 | H151: 1.239565657e+11 | I151: 134416180.8 | J151: 134.4161808 | K151: 0.1344161808
A152: DEJ-02 | B152: 0.282273 | C152: 0.282324 | D152: 0.02 | E152: 1.00255 | F152: 37300000000 | G152: 1.857908847e-11 | H152: 1.239565657e+11 | I152: 137101084.1 | J152: 137.1010841 | K152: 0.1371010841
A153: DEJ-03 | B153: 0.282219 | C153: 0.282273 | D153: 0.02 | E153: 1.0027 | F153: 37300000000 | G153: 1.857908847e-11 | H153: 1.239565657e+11 | I153: 145154990.5 | J153: 145.1549905 | K153: 0.1451549905
A154: DJ-0288 | B154: 0.281847 | C154: 0.281894 | D154: 0.02 | E154: 1.00235 | F154: 37300000000 | G154: 1.857908847e-11 | H154: 1.239565657e+11 | I154: 126360667.6 | J154: 126.3606676 | K154: 0.1263606676
A155: HRV77b | B155: 0.282317 | C155: 0.282423 | D155: 0.04 | E155: 1.00265 | F155: 37300000000 | G155: 1.857908847e-11 | H155: 1.239565657e+11 | I155: 142470488.9 | J155: 142.4704889 | K155: 0.1424704889
A156: RV07-12 | B156: 0.284812 | C156: 0.285078 | D156: 0.11 | E156: 1.002418182 | F156: 37300000000 | G156: 1.857908847e-11 | H156: 1.239565657e+11 | I156: 130022414 | J156: 130.022414 | K156: 0.130022414
A157: RV73-12 | B157: 0.286074 | C157: 0.286336 | D157: 0.29 | E157: 1.000903448 | F157: 37300000000 | G157: 1.857908847e-11 | H157: 1.239565657e+11 | I157: 48613963.7 | J157: 48.6139637 | K157: 0.0486139637
A158: RV07-08 | B158: 0.301897 | C158: 0.303175 | D158: 0.51 | E158: 1.002505882 | F158: 37300000000 | G158: 1.857908847e-11 | H158: 1.239565657e+11 | I158: 134732058.8 | J158: 134.7320588 | K158: 0.1347320588
A159: BD-1191 | B159: 0.300767 | C159: 0.301875 | D159: 0.45 | E159: 1.002462222 | F159: 37300000000 | G159: 1.857908847e-11 | H159: 1.239565657e+11 | I159: 132387498.5 | J159: 132.3874985 | K159: 0.1323874985
A160: DEJ-5 | B160: 0.288301 | C160: 0.288882 | D160: 0.23 | E160: 1.002526087 | F160: 37300000000 | G160: 1.857908847e-11 | H160: 1.239565657e+11 | I160: 135817016.6 | J160: 135.8170166 | K160: 0.1358170166
A163: Neodymium | K163: Table 2
A164: Samarium | B164: Initial | C164: Today | D164: Today | E164: The Ratio | F164: Half | G164: Decay | H164: 2.303/Delta | I164: Age | J164: Age | K164: Age
A165: Dating | B165: 143Nd/144Nd | C165: 143Nd/144Nd | D165: 147Sm/144Nd | E165: Plus One | F165: Life | G165: Constant | H165: Constant | I165: Years | J165: Million Years | K165: Billion Years
A166: RV07-02 | B166: 0.512072 | C166: 0.512455 | D166: 0.56 | E166: =1+((C166-B166)/D166) -> 1.000683929 | F166: 106000000000 | G166: =(0.693/F166) -> 6.537735849e-12 | H166: =(2.303/G166) -> 3.522626263e+11 | I166: =(LOG(E166))*(H166) -> 104595537.5 | J166: =(I166/1000000) -> 104.5955375 | K166: =(J166/1000) -> 0.1045955375
A167: RV07-03 | B167: 0.511812 | C167: 0.512135 | D167: 0.47 | E167: =1+((C167-B167)/D167) -> 1.000687234 | F167: 106000000000 | G167: =(0.693/F167) -> 6.537735849e-12 | H167: =(2.303/G167) -> 3.522626263e+11 | I167: =(LOG(E167))*(H167) -> 105100880.9 | J167: =(I167/1000000) -> 105.1008809 | K167: =(J167/1000) -> 0.1051008809
A168: RV07-09 | B168: 0.512021 | C168: 0.512893 | D168: 1.27 | E168: 1.000686614 | F168: 106000000000 | G168: 6.537735849e-12 | H168: 3.522626263e+11 | I168: 105006114.8 | J168: 105.0061148 | K168: 0.1050061148
A169: RV07-13 | B169: 0.512103 | C169: 0.512789 | D169: 1 | E169: 1.000686 | F169: 106000000000 | G169: 6.537735849e-12 | H169: 3.522626263e+11 | I169: 104912219.6 | J169: 104.9122196 | K169: 0.1049122196
A170: RV07-20 | B170: 0.512081 | C170: 0.512471 | D170: 0.57 | E170: 1.000684211 | F170: 106000000000 | G170: 6.537735849e-12 | H170: 3.522626263e+11 | I170: 104638643.1 | J170: 104.6386431 | K170: 0.1046386431
A171: RVF-6 | B171: 0.514062 | C171: 0.514846 | D171: 0.94 | E171: 1.000834043 | F171: 106000000000 | G171: 6.537735849e-12 | H171: 3.522626263e+11 | I171: 127543415.2 | J171: 127.5434152 | K171: 0.1275434152
A172: RVF-8 | B172: 0.514063 | C172: 0.514471 | D172: 0.49 | E172: 1.000832653 | F172: 106000000000 | G172: 6.537735849e-12 | H172: 3.522626263e+11 | I172: 127331019.8 | J172: 127.3310198 | K172: 0.1273310198
A173: RV07-01 | B173: 0.511949 | C173: 0.512343 | D173: 0.57 | E173: 1.000691228 | F173: 106000000000 | G173: 6.537735849e-12 | H173: 3.522626263e+11 | I173: 105711489.2 | J173: 105.7114892 | K173: 0.1057114892
A174: RV07-07 | B174: 0.512054 | C174: 0.512397 | D174: 0.5 | E174: 1.000686 | F174: 106000000000 | G174: 6.537735849e-12 | H174: 3.522626263e+11 | I174: 104912219.6 | J174: 104.9122196 | K174: 0.1049122196
A175: RV07-11 | B175: 0.511905 | C175: 0.51226 | D175: 0.52 | E175: 1.000682692 | F175: 106000000000 | G175: 6.537735849e-12 | H175: 3.522626263e+11 | I175: 104406535.9 | J175: 104.4065359 | K175: 0.1044065359
A176: RV07-14 | B176: 0.511996 | C176: 0.512295 | D176: 0.43 | E176: 1.000695349 | F176: 106000000000 | G176: 6.537735849e-12 | H176: 3.522626263e+11 | I176: 106341470.9 | J176: 106.3414709 | K176: 0.1063414709
A177: RV07-16 | B177: 0.512042 | C177: 0.512416 | D177: 0.54 | E177: 1.000692593 | F177: 106000000000 | G177: 6.537735849e-12 | H177: 3.522626263e+11 | I177: 105920097.3 | J177: 105.9200973 | K177: 0.1059200973
A178: RV07-18 | B178: 0.512016 | C178: 0.512284 | D178: 0.39 | E178: 1.000687179 | F178: 106000000000 | G178: 6.537735849e-12 | H178: 3.522626263e+11 | I178: 105092540.4 | J178: 105.0925404 | K178: 0.1050925404
A179: RV07-19 | B179: 0.511995 | C179: 0.512352 | D179: 0.52 | E179: 1.000686538 | F179: 106000000000 | G179: 6.537735849e-12 | H179: 3.522626263e+11 | I179: 104994540 | J179: 104.99454 | K179: 0.10499454
A180: RV07-22 | B180: 0.512051 | C180: 0.512402 | D180: 0.51 | E180: 1.000688235 | F180: 106000000000 | G180: 6.537735849e-12 | H180: 3.522626263e+11 | I180: 105253952.8 | J180: 105.2539528 | K180: 0.1052539528
A181: RV07-29 | B181: 0.511939 | C181: 0.512288 | D181: 0.51 | E181: 1.000684314 | F181: 106000000000 | G181: 6.537735849e-12 | H181: 3.522626263e+11 | I181: 104654420.3 | J181: 104.6544203 | K181: 0.1046544203
A182: HRV-247 | B182: 0.511971 | C182: 0.51225 | D182: 0.41 | E182: 1.000680488 | F182: 106000000000 | G182: 6.537735849e-12 | H182: 3.522626263e+11 | I182: 104069508.2 | J182: 104.0695082 | K182: 0.1040695082
A183: DEJ02 | B183: 0.512157 | C183: 0.512233 | D183: 0.11 | E183: 1.000690909 | F183: 106000000000 | G183: 6.537735849e-12 | H183: 3.522626263e+11 | I183: 105662723.6 | J183: 105.6627236 | K183: 0.1056627236
A184: DEJ-03 | B184: 0.512139 | C184: 0.512441 | D184: 0.44 | E184: 1.000686364 | F184: 106000000000 | G184: 6.537735849e-12 | H184: 3.522626263e+11 | I184: 104967812.6 | J184: 104.9678126 | K184: 0.1049678126
A185: DJ-0288 | B185: 0.512686 | C185: 0.512957 | D185: 0.39 | E185: 1.000694872 | F185: 106000000000 | G185: 6.537735849e-12 | H185: 3.522626263e+11 | I185: 106268541 | J185: 106.268541 | K185: 0.106268541
A186: RV07-12 | B186: 0.523033 | C186: 0.52449 | D186: 1.74 | E186: 1.000837356 | F186: 106000000000 | G186: 6.537735849e-12 | H186: 3.522626263e+11 | I186: 128049951.2 | J186: 128.0499512 | K186: 0.1280499512
A187: RV73-12 | B187: 0.512389 | C187: 0.512389 | D187: 0 | F187: 106000000000 | G187: 6.537735849e-12 | H187: 3.522626263e+11 | J187: . | K187: .
A188: RV07-08 | B188: 0.534127 | C188: 0.536189 | D188: 2.46 | E188: 1.000838211 | F188: 106000000000 | G188: 6.537735849e-12 | H188: 3.522626263e+11 | I188: 128180653.7 | J188: 128.1806537 | K188: 0.1281806537
A189: BD-1191 | B189: 0.544539 | C189: 0.54769 | D189: 3.76 | E189: 1.000838032 | F189: 106000000000 | G189: 6.537735849e-12 | H189: 3.522626263e+11 | I189: 128153220.7 | J189: 128.1532207 | K189: 0.1281532207
A190: DEJ-5 | B190: 0.528144 | C190: 0.52958 | D190: 1.71 | E190: 1.000839766 | F190: 106000000000 | G190: 6.537735849e-12 | H190: 3.522626263e+11 | I190: 128418301.1 | J190: 128.4183011 | K190: 0.1284183011
A191: RV07-02 | B191: 0.512059 | C191: 0.51215 | D191: 0.13 | E191: 1.0007 | F191: 106000000000 | G191: 6.537735849e-12 | H191: 3.522626263e+11 | I191: 107052536.3 | J191: 107.0525363 | K191: 0.1070525363
A192: RV07-03 | B192: 0.511849 | C192: 0.511933 | D192: 0.12 | E192: 1.0007 | F192: 106000000000 | G192: 6.537735849e-12 | H192: 3.522626263e+11 | I192: 107052536.3 | J192: 107.0525363 | K192: 0.1070525363
A193: RV07-09 | B193: 0.512039 | C193: 0.512118 | D193: 0.12 | E193: 1.000658333 | F193: 106000000000 | G193: 6.537735849e-12 | H193: 3.522626263e+11 | I193: 100682457.9 | J193: 100.6824579 | K193: 0.1006824579
A194: RV07-13 | B194: 0.512046 | C194: 0.512142 | D194: 0.14 | E194: 1.000685714 | F194: 106000000000 | G194: 6.537735849e-12 | H194: 3.522626263e+11 | I194: 104868539.3 | J194: 104.8685393 | K194: 0.1048685393
A195: RV07-20 | B195: 0.512093 | C195: 0.512183 | D195: 0.13 | E195: 1.000692308 | F195: 106000000000 | G195: 6.537735849e-12 | H195: 3.522626263e+11 | I195: 105876541.8 | J195: 105.8765418 | K195: 0.1058765418
A196: RVF-6 | B196: 0.513726 | C196: 0.513906 | D196: 0.21 | E196: 1.000857143 | F196: 106000000000 | G196: 6.537735849e-12 | H196: 3.522626263e+11 | I196: 131074445.9 | J196: 131.0744459 | K196: 0.1310744459
A197: RVF-8 | B197: 0.51358 | C197: 0.513676 | D197: 0.11 | E197: 1.000872727 | F197: 106000000000 | G197: 6.537735849e-12 | H197: 3.522626263e+11 | I197: 133456578.5 | J197: 133.4565785 | K197: 0.1334565785
A198: RV07-01 | B198: 0.511986 | C198: 0.512075 | D198: 0.13 | E198: 1.000684615 | F198: 106000000000 | G198: 6.537735849e-12 | H198: 3.522626263e+11 | I198: 104700538.2 | J198: 104.7005382 | K198: 0.1047005382
A199: RV07-07 | B199: 0.51206 | C199: 0.512153 | D199: 0.14 | E199: 1.000664286 | F199: 106000000000 | G199: 6.537735849e-12 | H199: 3.522626263e+11 | I199: 101592485.3 | J199: 101.5924853 | K199: 0.1015924853
A200: RV07-11 | B200: 0.512025 | C200: 0.512114 | D200: 0.13 | E200: 1.000684615 | F200: 106000000000 | G200: 6.537735849e-12 | H200: 3.522626263e+11 | I200: 104700538.2 | J200: 104.7005382 | K200: 0.1047005382
A201: RV07-14 | B201: 0.511981 | C201: 0.512079 | D201: 0.14 | E201: 1.0007 | F201: 106000000000 | G201: 6.537735849e-12 | H201: 3.522626263e+11 | I201: 107052536.3 | J201: 107.0525363 | K201: 0.1070525363
A202: RV07-16 | B202: 0.512051 | C202: 0.512155 | D202: 0.15 | E202: 1.000693333 | F202: 106000000000 | G202: 6.537735849e-12 | H202: 3.522626263e+11 | I202: 106033341.6 | J202: 106.0333416 | K202: 0.1060333416
A203: RV07-18 | B203: 0.512032 | C203: 0.512114 | D203: 0.12 | E203: 1.000683333 | F203: 106000000000 | G203: 6.537735849e-12 | H203: 3.522626263e+11 | I203: 104504536.8 | J203: 104.5045368 | K203: 0.1045045368
A204: RV07-19 | B204: 0.512026 | C204: 0.512113 | D204: 0.13 | E204: 1.000669231 | F204: 106000000000 | G204: 6.537735849e-12 | H204: 3.522626263e+11 | I204: 102348504 | J204: 102.348504 | K204: 0.102348504
A205: RV07-22 | B205: 0.511994 | C205: 0.512079 | D205: 0.12 | E205: 1.000708333 | F205: 106000000000 | G205: 6.537735849e-12 | H205: 3.522626263e+11 | I205: 108326520.2 | J205: 108.3265202 | K205: 0.1083265202
A206: RV07-29 | B206: 0.511944 | C206: 0.512033 | D206: 0.13 | E206: 1.000684615 | F206: 106000000000 | G206: 6.537735849e-12 | H206: 3.522626263e+11 | I206: 104700538.2 | J206: 104.7005382 | K206: 0.1047005382
... 37 more rows

Sheet Future_03
A1: Sample
A2: Number
A3: LB-11 | B3: 3.4 | C3: 2.24
A4: LB-1 | B4: 4 | C4: 2.53
A5: LB-9 | C5: 2.49
A6: LB-14 | B6: 3.25 | C6: 2.8
A7: LB-16 | C7: 2.42
A8: LB-17 | C8: 2.23
A9: KAT-1 | C9: 1.98
A10: LB-4 | B10: 1.73 | C10: 0.34
A11: LB-12 | C11: 0.33
A12: LB-24 | C12: 2.2
A13: LB-34 | C13: 2.48
A14: LB-45 | B14: 0.18 | C14: Future
A15: LB-50 | B15: 2.34 | C15: 0.98
A16: LB-53 | C16: 0.71
A17: KAT-17 | C17: 0.36
A18: KAT-5 | C18: 1.15
A19: KAT-12 | C19: 1.73
A20: KAT-14 | C20: Future
A21: LB-59 | B21: 0.06 | C21: Future
A22: LB-15, | B22: 1.27 | C22: Future
A23: LB-49, | C23: Future
A24: Melilitite | C24: Future

Sheet Future_05
A1: Sample | B1: Age | C1: Age | K1: -6558 | M1: 5318
A2: Number | B2: Million Years | C2: Million Years | D2: Million Years | E2: Million Years | F2: Million Years | K2: -5892 | M2: 5700
A3: A3 | B3: -6558 | C3: -87817 | D3: -87817 | E3: -10838 | F3: -3503 | K3: -3773 | M3: 6001
A4: A3-1b | B4: -5892 | C4: -47693 | D4: -47693 | E4: -10501 | F4: -3031 | K4: -3503 | M4: 6088
A5: A3-1c | B5: -3773 | C5: -27938 | D5: -27938 | E5: -7384 | F5: -2902 | K5: -3031 | M5: 6106
A6: A7 | B6: -3503 | C6: -16952 | D6: -16952 | E6: -6558 | F6: -2814 | K6: -2902 | M6: 6428
A7: A8 | B7: -3031 | C7: -15940 | D7: -15940 | E7: -5892 | F7: -2741 | K7: -2814 | M7: 6470
A8: A8(1-2) | B8: -2902 | C8: -12854 | D8: -12854 | E8: -3773 | F8: -2552 | K8: -2741 | M8: 6519
A9: A8(1-2) | B9: -2814 | C9: -10838 | K9: -2552 | M9: 6736
A10: A13 | B10: -2741 | C10: -10501 | K10: -1917 | M10: 7441
A11: A13(2) | B11: -2552 | C11: -7384 | K11: -1916 | M11: 8044
A12: A13(4) | B12: -1917 | C12: -7124 | K12: -1835 | M12: 8862
A13: A15 | B13: -1916 | C13: -6398 | K13: -1798 | M13: 9449
A14: MX3 | B14: -1835 | C14: -6203 | K14: -1567 | M14: 10382
A15: MX3-2 | B15: -1798 | C15: -6138 | K15: -1432 | M15: 10701
A16: MX3-2 | B16: -1567 | C16: -5956 | K16: -1001 | M16: 10736
A17: QL26 | B17: -1432 | C17: -5000 | K17: -837 | M17: 18606
A18: QL26-1-1 | B18: -1001 | C18: -4010 | K18: -599 | M18: 20073
A19: QL26-2 | B19: -837 | C19: -3434 | K19: -515 | M19: 22664
A20: QL26-3 | B20: -599 | C20: -3011 | K20: -407 | M20: 24677
A21: QL26-4 | B21: -515 | C21: -2924 | K21: -286 | M21: 34329
A22: QL26-5 | B22: -407 | C22: -2882 | K22: -231 | M22: 39229
A23: QL27 | B23: -286 | C23: -2830 | K23: -181
A24: QL27-1-1 | B24: -231 | C24: -2386 | K24: -158
A25: QL27-2 | B25: -181 | C25: -2191 | K25: -114
A26: QL27-3 | B26: -158 | C26: -2121 | K26: -110
A27: QL27-4 | B27: -114 | C27: -2004 | K27: -98
A28: QL27-4-1 | B28: -110 | C28: -1979 | K28: -49
A29: Q9332 | B29: -98 | C29: -1867 | K29: -31
A30: Q9332-2 | B30: -49 | C30: -1860 | K30: -30
A31: Q9335 | B31: -31 | C31: -1841 | K31: -22
A32: Q9335-1-1 | B32: -30 | C32: -1644 | K32: -19
A33: Q9335-3 | B33: -22 | C33: -1321 | K33: -18
A34: Q9335-4 | B34: -19 | C34: -1098 | K34: -7
A35: Q9335-5 | B35: -18 | C35: -852 | K35: -87817
A36: Q9335-7 | B36: -7 | C36: -840 | K36: -47693
A37: Q9347 | B37: 6 | C37: -732 | K37: -27938
A38: Q9347-2 | B38: 25 | C38: -712 | K38: -16952
A39: NTS-1 | B39: 32 | C39: -690 | K39: -15940
A40: NTS-1-6 | B40: 147 | C40: -608 | K40: -12854
A41: NTS-2 | B41: 152 | C41: -595 | K41: -10838
A42: NTS-2-4 | B42: 181 | C42: -497 | K42: -10501
A43: NTS-2-6 | B43: 227 | C43: -453 | K43: -7384
A44: NTS-2-7 | B44: 267 | C44: -316 | K44: -7124
A45: NTS-2-8 | B45: 276 | C45: -315 | K45: -6398
A46: NTS-6 | B46: 297 | C46: -310 | K46: -6203
A47: NTS-7 | B47: 329 | C47: -283 | K47: -6138
A48: NTS-7-2 | B48: 346 | C48: -183 | K48: -5956
A49: NTS-7-3 | B49: 355 | C49: -168 | K49: -5000
A50: NTS-7-4 | B50: 371 | C50: -154 | K50: -4010
A51: NTS-8 | B51: 378 | C51: -142 | K51: -3434
A52: NTS-8-2 | B52: 404 | C52: -118 | K52: -3011
A53: NTS-9 | B53: 445 | C53: -97 | K53: -2924
A54: NTS-11 | B54: 460 | C54: -55 | K54: -2882
A55: NTS-11-2 | B55: 470 | C55: -42 | K55: -2830
A56: KPH9810 | B56: 472 | C56: -15 | K56: -2386
A57: KPH9816 | B57: 477 | C57: -10 | K57: -2191
A58: KPH9816/3 | B58: 507 | C58: -2 | K58: -2121
A59: KPH9816/3-1-s4 | B59: 544 | C59: 71 | K59: -2004
A60: KPH9822 | B60: 545 | C60: 252 | K60: -1979
A61: KPH9822-s4 | B61: 551 | C61: 280 | K61: -1867
A62: KPH9822-s4-2 | B62: 582 | C62: 377 | K62: -1860
A63: KPH9826 | B63: 583 | C63: 403 | K63: -1841
A64: KPH9826-s2 | B64: 583 | C64: 460 | K64: -1644
A65: KPH9826-s4 | B65: 607 | C65: 477 | K65: -1321
A66: KP0201 | B66: 624 | C66: 564 | K66: -1098
A67: KP0201-s4 | B67: 630 | C67: 604 | K67: -852
A68: KP0201-s5 | B68: 642 | C68: 613 | K68: -840
A69: KP0201-s7 | B69: 655 | C69: 637 | K69: -732
A70: KP0214 | B70: 657 | C70: 668 | K70: -712
A71: KP0214-11-s3-1 | B71: 659 | C71: 670 | K71: -690
A72: KP0214-11-s6 | B72: 668 | C72: 695 | K72: -608
A73: KP0214-16-s0-1 | B73: 691 | C73: 708 | K73: -595
A74: KP0215 | B74: 692 | C74: 727 | K74: -497
A75: KP0215-s4 | B75: 692 | C75: 876 | K75: -453
A76: KP0215-s5 | B76: 701 | C76: 919 | K76: -316
A77: KP0215-s6 | B77: 704 | C77: 953 | K77: -315
A78: KP0215-s7 | B78: 706 | C78: 964 | K78: -310
A79: KP0215-s8 | B79: 715 | C79: 982 | K79: -283
A80: TC0242 | B80: 763 | C80: 986 | K80: -183
A81: TC0242/2-s11 | B81: 801 | C81: 987 | K81: -168
A82: TC0242/2-s12 | B82: 812 | C82: 1127 | K82: -154
A83: TC0242/2-s13 | B83: 816 | C83: 1163 | K83: -142
A84: KPH9801 | B84: 833 | C84: 1197 | K84: -118
A85: KPH9801/2-1-s2 | B85: 839 | C85: 1206 | K85: -97
A86: TC0248 | B86: 841 | C86: 1241 | K86: -55
A87: TC0248-s11 | B87: 862 | C87: 1285 | K87: -42
A88: TC0248-s12 | B88: 874 | C88: 1303 | K88: -15
A89: TC0248-s13 | B89: 875 | C89: 1325 | K89: -10
A90: TC0248-s16 | B90: 882 | C90: 1341 | K90: -2
A91: TC0248-s18 | B91: 897 | C91: 1352
A92: TC0248-s30 | B92: 905 | C92: 1431
A93: TC0248-s31 | B93: 912 | C93: 1440
A94: TC0223 | B94: 920 | C94: 1462
A95: TC0223-s2 | B95: 921 | C95: 1462
A96: TC0223-s3 | B96: 926 | C96: 1496
A97: TC0223-s7 | B97: 938 | C97: 1539
A98: TC0223-s8 | B98: 949 | C98: 1554
A99: TC0223-s11 | B99: 961 | C99: 1554
A100: TC0223-s12 | B100: 975 | C100: 1555
A101: TC0223-s13 | B101: 986 | C101: 1562
A102: TC0223-s14 | B102: 987 | C102: 1692
A103: TC0223-s15 | B103: 1003 | C103: 1716
A104: PS1-1 | B104: 1033 | C104: 1718
A105: PSS-4 | B105: 1082 | C105: 1767
A106: PSS-4-4 | B106: 1088 | C106: 1780
A107: PSS-5 | B107: 1105 | C107: 1832
A108: PSS-10 | B108: 1122 | C108: 1848
A109: PSS-12 | B109: 1126 | C109: 1879
A110: TS2 | B110: 1130 | C110: 1886
A111: TS2-1R | B111: 1130 | C111: 1909
A112: TS2-2 | B112: 1143 | C112: 2006
A113: TS2-2R | B113: 1189 | C113: 2009
A114: TS2-3 | B114: 1217 | C114: 2018
A115: TS2-4 | B115: 1229 | C115: 2034
A116: TS2-5 | B116: 1235 | C116: 2057
A117: TS2-2(3) | B117: 1247 | C117: 2079
A118: TS2-3(3) | B118: 1251 | C118: 2081
A119: TS2-4(3) | B119: 1251 | C119: 2087
A120: TS2-(1) | B120: 1255 | C120: 2091
A121: TS2-(2) | B121: 1269 | C121: 2124
A122: TS3 | B122: 1284 | C122: 2280
A123: TS3-1-1 | B123: 1297 | C123: 2287
A124: TS3(1) | B124: 1305 | C124: 2373
A125: TS3-3 | B125: 1342 | C125: 2376
A126: TS3-3-1 | B126: 1358 | C126: 2412
A127: TS3-3-2 | B127: 1369 | C127: 2467
A128: TS3-3-3 | B128: 1439 | C128: 2489
A129: FS2 | B129: 1454 | C129: 2502
A130: FS2-1-1 | B130: 1482 | C130: 2642
A131: FS2-2 | B131: 1484 | C131: 2689
A132: DM02-4 | B132: 1497 | C132: 2710
A133: DM02-4-2 | B133: 1513 | C133: 2715
A134: DM02-4-2b | B134: 1527 | C134: 2735
A135: DM02-4-3 | B135: 1557 | C135: 2749
A136: DM02-5 | B136: 1567 | C136: 2783
A137: DM02-5-2 | B137: 1622 | C137: 2798
A138: DM02-6 | B138: 1623 | C138: 2965
A139: DM02-11 | B139: 1629 | C139: 2994
A140: DM02-11-5 | B140: 1674 | C140: 3028
A141: DM02-13 | B141: 1692 | C141: 3030
A142: DM02-13-2 | B142: 1700 | C142: 3159
A143: DM02-15 | B143: 1739 | C143: 3203
A144: DM02-15-3 | B144: 1744 | C144: 3406
A145: DM02-17 | B145: 1768 | C145: 3433
A146: DM02-17-2 | B146: 1804 | C146: 3469
A147: DM02-17-2-1 | B147: 1841 | C147: 3645
A148: DM02-17-3 | B148: 1866 | C148: 3777
A149: DM02-17-3-1 | B149: 1886 | C149: 4102
A150: DM02-17-4 | B150: 1905 | C150: 4106
A151: DM02-17-5 | B151: 1912 | C151: 4147
A152: DM02-17-7 | B152: 1912 | C152: 4180
A153: DM02-19 | B153: 1929 | C153: 4390
A154: Hb028 | B154: 1929 | C154: 4551
A155: Hb003 | B155: 1966 | C155: 4631
A156: YT01 | B156: 1973 | C156: 5318
A157: YT03 | B157: 1990 | C157: 5700 | E157: Million Years | F157: Million Years | G157: Million Years | H157: Million Years
A158: YT03-3 | B158: 1998 | C158: 6001 | E158: 6001 | F158: 6519 | G158: 9449 | H158: 20073
A159: YT05 | B159: 2006 | C159: 6088 | E159: 6088 | F159: 6736 | G159: 10382 | H159: 22664
A160: YT05-4-2 | B160: 2027 | C160: 6106 | E160: 6106 | F160: 7441 | G160: 10701 | H160: 24677
A161: YT07 | B161: 2067 | C161: 6428 | E161: 6428 | F161: 8044 | G161: 10736 | H161: 34329
A162: YT-08 | B162: 2093 | C162: 6470 | E162: 6470 | F162: 8862 | G162: 18606 | H162: 39229
A163: YT-08-8 | B163: 2094 | C163: 6519
A164: YT-08-8b | B164: 2118 | C164: 6736
A165: YT09 | B165: 2192 | C165: 7441
A166: YT09-1-1 | B166: 2230 | C166: 8044
A167: YT09-1-2 | B167: 2267 | C167: 8862
A168: YT09-2 | B168: 2454 | C168: 9449
A169: YT09-2-1 | B169: 2545 | C169: 10382
A170: YT09-2-2 | B170: 2640 | C170: 10701
A171: YT09-2-3 | B171: 2681 | C171: 10736
A172: YT09-2b | B172: 2868 | C172: 18606
A173: YT09-3 | B173: 2987 | C173: 20073
A174: YT09(1) | B174: 3054 | C174: 22664
A175: YT09(2) | B175: 3059 | C175: 24677
A176: YT09(3) | B176: 3094 | C176: 34329
A177: YT09(4) | B177: 3113 | C177: 39229
A178: Average | B178: =AVERAGE(B3:B177) -> 702.04 | C178: =AVERAGE(C3:C177) -> 837.3428571
A179: Maximum | B179: =MAX(B3:B178) -> 3113 | C179: =MAX(C3:C178) -> 39229
A180: Minimum | B180: =MIN(B3:B179) -> -6558 | C180: =MIN(C3:C179) -> -87817
A183: MA (Ga)
A184: Cathaysia Block | B184: 150 | C184: 146 | D184: 149 | E184: 137 | F184: 147 | G184: 146 | H184: 130 | I184: 144 | J184: 116 | K184: 86 | L184: 104 | M184: 89 | N184: 75 | O184: 59 | P184: 34
A185: Negative Age | B185: =-(166-B184)*38.1679389312977 -> -610.6870229 | C185: =-(166-C184)*38.1679389312977 -> -763.3587786 | D185: -648.8549618 | E185: -1106.870229 | F185: -725.1908397 | G185: -763.3587786 | H185: -1374.045802 | I185: -839.6946565 | J185: -1908.396947 | K185: -3053.435115 | L185: -2366.412214 | M185: -2938.931298 | N185: -3473.282443 | O185: -4083.969466 | P185: -5038.167939
A187: Cathaysia Block | B187: 324 | C187: 333 | D187: 334 | E187: 342 | F187: 375 | G187: 413
A188: Positive Age | B188: =(B187-166)*38.3141762452107 -> 6053.639847 | C188: 6398.467433 | D188: 6436.781609 | E188: 6743.295019 | F188: 8007.662835 | G188: 9463.601533
A191: Yangtze Block | B191: 116 | C191: 93
A192: Negative Age | B192: =-(166-B191)*38.1679389312977 -> -1908.396947 | C192: =-(166-C191)*38.1679389312977 -> -2786.259542
A194: Yangtze Block | B194: 304 | C194: 322 | D194: 398
A195: Positive Age | B195: =(B194-166)*38.3141762452107 -> 5287.356322 | C195: =(C194-166)*38.3141762452107 -> 5977.011494 | D195: =(D194-166)*38.3141762452107 -> 8888.888889
A198: Sino-Korean Block | B198: 157 | C198: 142 | D198: 110 | E198: 108 | F198: 92
A199: Negative Age | B199: =-(166-B198)*38.1679389312977 -> -343.5114504 | C199: =-(166-C198)*38.1679389312977 -> -916.0305344 | D199: -2137.40458 | E199: -2213.740458 | F199: -2824.427481
A201: Sino-Korean Block | B201: 315 | C201: 334
A202: Positive Age | B202: =(B201-166)*38.3141762452107 -> 5708.812261 | C202: =(C201-166)*38.3141762452107 -> 6436.781609
A205: Xing-Meng Block | B205: 153 | C205: 157 | D205: 161 | E205: 161 | F205: 112
A206: Negative Age | B206: =-(166-B205)*38.1679389312977 -> -496.1832061 | C206: -343.5114504 | D206: -190.8396947 | E206: -190.8396947 | F206: -2061.068702
A208: Xing-Meng Block | B208: 324 | C208: 359
A209: Positive Age | B209: =(B208-166)*38.3141762452107 -> 6053.639847 | C209: =(C208-166)*38.3141762452107 -> 7394.636015
A212: RD (Ga)
A213: Cathaysia Block | B213: 676 | C213: 658 | D213: 625 | E213: 639 | F213: 603 | G213: 591 | H213: 586 | I213: 494
A214: Negative Age | B214: =-(685-B213)*31.0077519379845 -> -279.0697674 | C214: =-(685-C213)*31.0077519379845 -> -837.2093023 | D214: =-(685-D213)*31.0077519379845 -> -1860.465116 | E214: =-(685-E213)*31.0077519379845 -> -1426.356589 | F214: =-(685-F213)*31.0077519379845 -> -2542.635659 | G214: -2914.728682 | H214: -3069.767442 | I214: -5922.48062
... 80 more rows

Sheet Future_08
B2: Million Years
A3: CKH39 | B3: -3297 | D3: -1051 | E3: 4.4 | F3: 7 | G3: -18 | H3: 6.2
A4: CKH64 | B4: -1051 | D4: -514 | E4: 12 | F4: 14 | G4: -5 | H4: 6.5
A5: CKH63 | B5: -659 | D5: -3297 | E5: -9.7 | F5: 1706 | G5: 2478 | H5: -5.7
A6: CKH58 | B6: -514 | D6: 1649 | E6: -16.6 | F6: 1152 | G6: 1719 | H6: -5.4
B7: -194
B8: -18
B9: -5
B10: 7
B11: 14
B12: 209
B13: 1137
B14: 1152
B15: 1649
B16: 1706
B17: 1719
B18: 2478
B22: Sample | C22: 206Pb/238U | D22: 207Pb/235U | E22: 207Pb/206Pb
B23: 63a | C23: 426 | D23: 611 | E23: 1371
B24: 63d | C24: 317 | D24: 490 | E24: 1410
B25: 63e | C25: 98 | D25: 161 | E25: 1238
B26: 63j | C26: 430 | D26: 622 | E26: 1402
B27: 63g | C27: 136 | D27: 242 | E27: 1457
B28: 63b | C28: 319 | D28: 483 | E28: 1362
B29: 63c | C29: 425 | D29: 624 | E29: 1429

Sheet Future_09
A1: Table 5
A2: Sample | B2: 87Rb/86Sr | C2: Error
A3: M42 | B3: -14.7 | C3: 22
A4: BM42a | B4: -13.3 | C4: 1
A5: BK21 | B5: -11 | C5: 0.7
A6: BK21-A | B6: 4.79 | C6: 0.6
A7: BK21-A | B7: 12 | C7: 0.3
A8: BK21-A | B8: 31.4 | C8: 0.1
A9: BK21-A | B9: 32.2 | C9: 0.2
A10: BK21-A | B10: 33.9 | C10: 0.3
A11: BK21-A | B11: 44 | C11: 0.3
A12: BK18 | B12: 65.2 | C12: 2
A13: BK18 | B13: 79 | C13: 2
A14: BK18 | B14: 80 | C14: 2
A15: BK18 | B15: 103 | C15: 2
A16: BK18 | B16: 201 | C16: 0.05
A19: Table 4 | G19: Age | H19: Age
A20: Sample | B20: 238U/204Pb | C20: 206Pb/238U | D20: 207Pb/204Pb | E20: 206Pb/204Pb | F20: 207Pb/206Pb | G20: 206Pb/238U | H20: 207Pb/206Pb
A21: BK6 | B21: 18.6 | C21: =(E21/B21) -> 1.007741935 | D21: 15.646 | E21: 18.744 | F21: =(D21/E21) -> 0.8347204439 | G21: =[1]!AgePb6U8(C21) -> 4493.219503 | H21: =[1]!AgePb76(F21) -> 4982.164239
A22: BK19 | B22: 4.3 | C22: =(E22/B22) -> 4.358604651 | D22: 15.674 | E22: 18.742 | F22: =(D22/E22) -> 0.8363034895 | G22: =[1]!AgePb6U8(C22) -> 10821.61879 | H22: =[1]!AgePb76(F22) -> 4984.855348
A23: BK18 | B23: 5.32 | C23: 3.522556391 | D23: 15.666 | E23: 18.74 | F23: 0.8359658485 | G23: =[1]!AgePb6U8(C23) -> 9728.138 | H23: =[1]!AgePb76(F23) -> 4984.281828
A24: BM42a | B24: 4 | C24: 4.6965 | D24: 15.661 | E24: 18.786 | F24: 0.8336527201 | G24: =[1]!AgePb6U8(C24) -> 11215.80629 | H24: =[1]!AgePb76(F24) -> 4980.34609
A25: BM42c | B25: 4.18 | C25: 4.491866029 | D25: 15.669 | E25: 18.776 | F25: 0.8345227951 | G25: =[1]!AgePb6U8(C25) -> 10979.9716 | H25: =[1]!AgePb76(F25) -> 4981.827864
A26: BM42b | B26: 3.68 | C26: 5.102445652 | D26: 15.669 | E26: 18.777 | F26: 0.8344783512 | G26: =[1]!AgePb6U8(C26) -> 11659.5624 | H26: =[1]!AgePb76(F26) -> 4981.752214
A27: BK21 | B27: 9.29 | C27: 2.02378902 | D27: 15.676 | E27: 18.801 | F27: 0.8337854369 | G27: =[1]!AgePb6U8(C27) -> 7133.026189 | H27: =[1]!AgePb76(F27) -> 4980.572219
A28: BM42 | B28: 4.88 | C28: 3.841803279 | D28: 15.652 | E28: 18.748 | F28: 0.8348623853 | G28: =[1]!AgePb6U8(C28) -> 10167.84677 | H28: =[1]!AgePb76(F28) -> 4982.405755
A29: BK28 | B29: 4.65 | C29: 3.892688172 | D29: 15.749 | E29: 18.101 | F29: 0.8700624275 | G29: =[1]!AgePb6U8(C29) -> 10235.24178 | H29: =[1]!AgePb76(F29) -> 5040.990372
A30: BK29 | B30: 7.09 | C30: 2.550070522 | D30: 15.623 | E30: 18.08 | F30: 0.8641039823 | G30: =[1]!AgePb6U8(C30) -> 8167.397058 | H30: =[1]!AgePb76(F30) -> 5031.252467
A33: Table 2
A34: 238U/204Pb | B34: 26.1 | C34: 25.6 | D34: 23 | E34: 24.5 | F34: 16.6 | G34: 15.9 | H34: 14.8 | I34: 14.2 | J34: 13.6 | K34: 14.6 | L34: 7.85
A35: 206Pb/204Pb | B35: 39.098 | C35: 39.086 | D35: 39.102 | E35: 39.173 | F35: 39.076 | G35: 39.147 | H35: 38.999 | I35: 39.058 | J35: 39.054 | K35: 38.873 | L35: 38.888
A36: 207Pb/204Pb | B36: 15.687 | C36: 15.682 | D36: 15.683 | E36: 15.707 | F36: 15.678 | G36: 15.699 | H36: 15.708 | I36: 15.699 | J36: 15.702 | K36: 15.664 | L36: 15.664
A37: 206Pb/204Pb | B37: 19.52 | C37: 19.512 | D37: 19.434 | E37: 19.461 | F37: 19.399 | G37: 19.419 | H37: 19.573 | I37: 19.373 | J37: 19.351 | K37: 19.06 | L37: 19.056
A38: 206Pb/238U | B38: =[1]!AgePb6U8(B35/B34) -> 5901.650149 | C38: =[1]!AgePb6U8(C35/C34) -> 5975.519377 | D38: =[1]!AgePb6U8(D35/D34) -> 6403.119927 | E38: =[1]!AgePb6U8(E35/E34) -> 6156.889562 | F38: =[1]!AgePb6U8(F35/F34) -> 7801.105425 | G38: =[1]!AgePb6U8(G35/G34) -> 8005.597141 | H38: =[1]!AgePb6U8(H35/H34) -> 8319.920702 | I38: =[1]!AgePb6U8(I35/I34) -> 8521.553995 | J38: =[1]!AgePb6U8(J35/J34) -> 8726.333063 | K38: =[1]!AgePb6U8(K35/K34) -> 8368.446897 | L38: =[1]!AgePb6U8(L35/L34) -> 11500.68659 | M38: Age
A39: 207Pb/206Pb | B39: =[1]!AgePb76(B36/B35) -> 3913.666197 | C39: =[1]!AgePb76(C36/C35) -> 3913.648434 | D39: =[1]!AgePb76(D36/D35) -> 3913.129095 | E39: =[1]!AgePb76(E36/E35) -> 3912.700739 | F39: =[1]!AgePb76(F36/F35) -> 3913.649601 | G39: =[1]!AgePb76(G36/G35) -> 3912.93296 | H39: =[1]!AgePb76(H36/H35) -> 3919.48681 | I39: =[1]!AgePb76(I36/I35) -> 3916.353921 | J39: =[1]!AgePb76(J36/J35) -> 3916.794992 | K39: =[1]!AgePb76(K36/K35) -> 3920.134445 | L39: =[1]!AgePb76(L36/L35) -> 3919.554776 | M39: Age
D41: Table 2 | E41: Table 2 | F41: Table 4 | G41: Table 4 | H41: Table 5
D42: 206Pb/238U | E42: 207Pb/206Pb | F42: 206Pb/238U | G42: 207Pb/206Pb | H42: 87Rb/86Sr
D43: 5902 | E43: 3914 | F43: 4493.219503 | G43: 4982.164239 | H43: -14.7
D44: 5976 | E44: 3914 | F44: 10821.61879 | G44: 4984.855348 | H44: -13.3
D45: 6403 | E45: 3913 | F45: 9728.138 | G45: 4984.281828 | H45: -11
D46: 6157 | E46: 3913 | F46: 11215.80629 | G46: 4980.34609 | H46: 4.79
D47: 7801 | E47: 3914 | F47: 10979.9716 | G47: 4981.827864 | H47: 12
D48: 8006 | E48: 3913 | F48: 11659.5624 | G48: 4981.752214 | H48: 31.4
D49: 8320 | E49: 3919 | F49: 7133.026189 | G49: 4980.572219 | H49: 32.2
D50: 8522 | E50: 3916 | F50: 10167.84677 | G50: 4982.405755 | H50: 33.9
D51: 8726 | E51: 3917 | F51: 10235.24178 | G51: 5040.990372 | H51: 44
D52: 8368 | E52: 3920 | F52: 8167.397058 | G52: 5031.252467 | H52: 65.2
D53: 11501 | E53: 3920 | H53: 79

Sheet Future_11
B2: 87Rb/86Sr | C2: 87Sr/86Sr | E2: (87Sr/86Sr)i | H2: 147Sm/144Nd | I2: 143Nd/144Nd | K2: (143Nd/144Nd)i | M2: Million Years
A3: AT24 | B3: 0.011 | C3: 0.703271 | D3: 13 | E3: 0.703271 | F3: 0.024 | G3: 0.059 | H3: 0.243483 | I3: 0.512958 | J3: 37 | K3: 0.512957 | L3: 6.24 | M3: -2192
A4: AT24 | B4: 0.004 | C4: 0.703136 | D4: 9 | E4: 0.703136 | F4: 1.31 | G4: 5 | H4: 0.153728 | I4: 0.512928 | J4: 11 | K4: 0.512928 | L4: 5.66 | M4: -1115
A5: AT24 | B5: 0.051 | C5: 0.704392 | D5: 29 | E5: 0.704392 | F5: 0.744 | G5: 0.707 | H5: 0.617561 | I5: 0.512962 | J5: 16 | K5: 0.51296 | L5: 6.29 | M5: -573
A6: AT31 | B6: 0.002 | C6: 0.703625 | D6: 9 | E6: 0.703625 | F6: 1.862 | G6: 7.26 | H6: 0.150509 | I6: 0.512801 | J6: 13 | K6: 0.5128 | L6: 3.18 | M6: -59
A7: AT31 | B7: 0.002 | C7: 0.703607 | D7: 11 | E7: 0.703607 | F7: 1.78 | G7: 6.909 | H7: 0.151169 | I7: 0.5128 | J7: 10 | K7: 0.5128 | L7: 3.17 | M7: 181
A8: AT37 | B8: 2.309 | C8: 0.70391 | D8: 18 | E8: 0.703861 | F8: 0.059 | G8: 0.188 | H8: 0.188574 | I8: 0.51277 | J8: 43 | K8: 0.512768 | L8: 2.58 | M8: 416
A9: AT37 | B9: 0.006 | C9: 0.703482 | D9: 9 | E9: 0.703482 | F9: 2.031 | G9: 8.589 | H9: 0.143002 | I9: 0.512783 | J9: 12 | K9: 0.512782 | L9: 2.83 | M9: 639
A10: AT37 | B10: 3.888 | C10: 0.704939 | D10: 22 | E10: 0.704856 | F10: 4.573 | G10: 9.903 | H10: 0.279228 | I10: 0.5123 | J10: 17 | K10: 0.512297 | L10: −6.61 | M10: 664
A11: AT41 | B11: 26.04 | C11: 0.703979 | D11: 23 | E11: 0.703831 | F11: 0.028 | G11: 0.127 | H11: 0.135549 | I11: 0.512718 | J11: 96 | K11: 0.512717 | L11: 1.57 | M11: 669
A12: AT41 | B12: 0.002 | C12: 0.703522 | D12: 10 | E12: 0.703522 | F12: 7.685 | G12: 33.23 | H12: 0.139847 | I12: 0.512757 | J12: 10 | K12: 0.512755 | L12: 2.32 | M12: 676
A13: AT57 | B13: 0.012 | C13: 0.703584 | D13: 11 | E13: 0.703584 | F13: 1.788 | G13: 7.06 | H13: 0.148548 | I13: 0.512778 | J13: 34 | K13: 0.512778 | L13: 2.73 | M13: 698
A14: AT65 | B14: 0 | C14: 0.704797 | D14: 11 | E14: 0.704797 | F14: 4.143 | G14: 15.63 | H14: 0.160302 | I14: 0.5124 | J14: 8 | K14: 0.512398 | L14: −4.64 | M14: 698
A15: AT65 | B15: 0.003 | C15: 0.704865 | D15: 13 | E15: 0.704865 | F15: 3.524 | G15: 12.59 | H15: 0.169323 | I15: 0.512416 | J15: 11 | K15: 0.512414 | L15: −4.33 | M15: 1564
A16: AT65 | B16: 0.145 | C16: 0.704569 | D16: 18 | E16: 0.704566 | F16: 0.034 | G16: 0.06 | H16: 0.34267 | I16: 0.512662 | J16: 25 | K16: 0.512662 | L16: 0.47 | M16: 1760
A17: AT69 | B17: 0.002 | C17: 0.70302 | D17: 24 | E17: 0.70302 | F17: 1.217 | G17: 4.379 | H17: 0.163115 | I17: 0.513044 | J17: 9 | K17: 0.513044 | L17: 7.93 | M17: 2013
A20: Rubidium | B20: Table 2 | J20: Table 2
A21: Strontium | B21: Initial | C21: Today | D21: Today | E21: The Ratio | F21: Half | G21: Decay | H21: 2.303/Delta | I21: Age | J21: Age | K21: Age
A22: Dating | B22: 87Sr/86Sr | C22: 87Sr/86Sr | D22: 87Rb/86Sr | E22: Plus One | F22: Life | G22: Constant | H22: Constant | I22: Years | J22: Million Years | K22: Billion Years
B23: 0.703271 | C23: 0.703271 | D23: 0.011 | E23: =1+((C23-B23)/D23) -> 1 | F23: 48800000000 | G23: =(0.693/F23) -> 1.420081967e-11 | H23: =(2.303/G23) -> 1.621737374e+11 | I23: =(LOG(E23))*(H23) -> 0 | J23: =(I23/1000000) -> 0 | K23: =(J23/1000) -> 0
B24: 0.703136 | C24: 0.703136 | D24: 0.004 | E24: 1 | F24: 48800000000 | G24: 1.420081967e-11 | H24: 1.621737374e+11 | I24: 0 | J24: 0 | K24: 0
B25: 0.704392 | C25: 0.704392 | D25: 0.051 | E25: 1 | F25: 48800000000 | G25: 1.420081967e-11 | H25: 1.621737374e+11 | I25: 0 | J25: 0 | K25: 0
B26: 0.703625 | C26: 0.703625 | D26: 0.002 | E26: 1 | F26: 48800000000 | G26: 1.420081967e-11 | H26: 1.621737374e+11 | I26: 0 | J26: 0 | K26: 0
B27: 0.703607 | C27: 0.703607 | D27: 0.002 | E27: =1+((C27-B27)/D27) -> 1 | F27: 48800000000 | G27: =(0.693/F27) -> 1.420081967e-11 | H27: =(2.303/G27) -> 1.621737374e+11 | I27: =(LOG(E27))*(H27) -> 0 | J27: =(I27/1000000) -> 0 | K27: =(J27/1000) -> 0
B28: 0.703861 | C28: 0.70391 | D28: 2.309 | E28: 1.000021221 | F28: 48800000000 | G28: 1.420081967e-11 | H28: 1.621737374e+11 | I28: 1494625.459 | J28: 1.494625459 | K28: 0.001494625459
B29: 0.703482 | C29: 0.703482 | D29: 0.006 | E29: 1 | F29: 48800000000 | G29: 1.420081967e-11 | H29: 1.621737374e+11 | I29: 0 | J29: 0 | K29: 0
B30: 0.704856 | C30: 0.704939 | D30: 3.888 | E30: 1.000021348 | F30: 48800000000 | G30: 1.420081967e-11 | H30: 1.621737374e+11 | I30: 1503529.79 | J30: 1.50352979 | K30: 0.00150352979
B31: 0.703831 | C31: 0.703979 | D31: 26.04 | E31: 1.000005684 | F31: 48800000000 | G31: 1.420081967e-11 | H31: 1.621737374e+11 | I31: 400298.8459 | J31: 0.4002988459 | K31: 0.0004002988459
B32: 0.703522 | C32: 0.703522 | D32: 0.002 | E32: 1 | F32: 48800000000 | G32: 1.420081967e-11 | H32: 1.621737374e+11 | I32: 0 | J32: 0 | K32: 0
B33: 0.703584 | C33: 0.703584 | D33: 0.012 | E33: 1 | F33: 48800000000 | G33: 1.420081967e-11 | H33: 1.621737374e+11 | I33: 0 | J33: 0 | K33: 0
B34: 0.704797 | C34: 0.704797 | D34: 0 | E34: 0 | F34: 48800000000 | G34: 1.420081967e-11 | H34: 1.621737374e+11 | I34: 0 | J34: 0 | K34: 0
B35: 0.704865 | C35: 0.704865 | D35: 0.003 | E35: 1 | F35: 48800000000 | G35: 1.420081967e-11 | H35: 1.621737374e+11 | I35: 0 | J35: 0 | K35: 0
B36: 0.704566 | C36: 0.704569 | D36: 0.145 | E36: 1.00002069 | F36: 48800000000 | G36: 1.420081967e-11 | H36: 1.621737374e+11 | I36: 1457181.324 | J36: 1.457181324 | K36: 0.001457181324
B37: 0.70302 | C37: 0.70302 | D37: 0.002 | E37: 1 | F37: 48800000000 | G37: 1.420081967e-11 | H37: 1.621737374e+11 | I37: 0 | J37: 0 | K37: 0
A40: Neodymium | K40: Table 2
A41: Samarium | B41: Initial | C41: Today | D41: Today | E41: The Ratio | F41: Half | G41: Decay | H41: 2.303/Delta | I41: Age | J41: Age | K41: Age
A42: Dating | B42: 143Nd/144Nd | C42: 143Nd/144Nd | D42: 147Sm/144Nd | E42: Plus One | F42: Life | G42: Constant | H42: Constant | I42: Years | J42: Million Years | K42: Billion Years
B43: 0.512957 | C43: 0.512958 | D43: 0.243483 | E43: =1+((C43-B43)/D43) -> 1.000004107 | F43: 106000000000 | G43: =(0.693/F43) -> 6.537735849e-12 | H43: =(2.303/G43) -> 3.522626263e+11 | I43: =(LOG(E43))*(H43) -> 628320.6656 | J43: =(I43/1000000) -> 0.6283206656 | K43: =(J43/1000) -> 0.0006283206656
B44: 0.512928 | C44: 0.512928 | D44: 0.153728 | E44: =1+((C44-B44)/D44) -> 1 | F44: 106000000000 | G44: 6.537735849e-12 | H44: =(2.303/G44) -> 3.522626263e+11 | I44: =(LOG(E44))*(H44) -> 0 | J44: =(I44/1000000) -> 0 | K44: =(J44/1000) -> 0
B45: 0.51296 | C45: 0.512962 | D45: 0.617561 | E45: 1.000003239 | F45: 106000000000 | G45: 6.537735849e-12 | H45: 3.522626263e+11 | I45: 495450.5451 | J45: 0.4954505451 | K45: 0.0004954505451
B46: 0.5128 | C46: 0.512801 | D46: 0.150509 | E46: 1.000006644 | F46: 106000000000 | G46: 6.537735849e-12 | H46: 3.522626263e+11 | I46: 1016452.216 | J46: 1.016452216 | K46: 0.001016452216
B47: 0.5128 | C47: 0.5128 | D47: 0.151169 | E47: 1 | F47: 106000000000 | G47: 6.537735849e-12 | H47: 3.522626263e+11 | I47: 0 | J47: 0 | K47: 0
B48: 0.512768 | C48: 0.51277 | D48: 0.188574 | E48: =1+((C48-B48)/D48) -> 1.000010606 | F48: 106000000000 | G48: =(0.693/F48) -> 6.537735849e-12 | H48: =(2.303/G48) -> 3.522626263e+11 | I48: =(LOG(E48))*(H48) -> 1622545.033 | J48: =(I48/1000000) -> 1.622545033 | K48: =(J48/1000) -> 0.001622545033
B49: 0.512782 | C49: 0.512783 | D49: 0.143002 | E49: 1.000006993 | F49: 106000000000 | G49: 6.537735849e-12 | H49: 3.522626263e+11 | I49: 1069811.47 | J49: 1.06981147 | K49: 0.00106981147
B50: 0.512297 | C50: 0.5123 | D50: 0.279228 | E50: 1.000010744 | F50: 106000000000 | G50: 6.537735849e-12 | H50: 3.522626263e+11 | I50: 1643655.646 | J50: 1.643655646 | K50: 0.001643655646
B51: 0.512717 | C51: 0.512718 | D51: 0.135549 | E51: 1.000007377 | F51: 106000000000 | G51: 6.537735849e-12 | H51: 3.522626263e+11 | I51: 1128633.56 | J51: 1.12863356 | K51: 0.00112863356
B52: 0.512755 | C52: 0.512757 | D52: 0.139847 | E52: 1.000014301 | F52: 106000000000 | G52: 6.537735849e-12 | H52: 3.522626263e+11 | I52: 2187885.63 | J52: 2.18788563 | K52: 0.00218788563
B53: 0.512778 | C53: 0.512778 | D53: 0.148548 | E53: 1 | F53: 106000000000 | G53: 6.537735849e-12 | H53: 3.522626263e+11 | I53: 0 | J53: 0 | K53: 0
B54: 0.512398 | C54: 0.5124 | D54: 0.160302 | E54: 1.000012476 | F54: 106000000000 | G54: 6.537735849e-12 | H54: 3.522626263e+11 | I54: 1908706.821 | J54: 1.908706821 | K54: 0.001908706821
B55: 0.512414 | C55: 0.512416 | D55: 0.169323 | E55: 1.000011812 | F55: 106000000000 | G55: 6.537735849e-12 | H55: 3.522626263e+11 | I55: 1807017.49 | J55: 1.80701749 | K55: 0.00180701749
B56: 0.512662 | C56: 0.512662 | D56: 0.34267 | E56: 1 | F56: 106000000000 | G56: 6.537735849e-12 | H56: 3.522626263e+11 | I56: 0 | J56: 0 | K56: 0
B57: 0.513044 | C57: 0.513044 | D57: 0.163115 | E57: 1 | F57: 106000000000 | G57: 6.537735849e-12 | H57: 3.522626263e+11 | I57: 0 | J57: 0 | K57: 0

Sheet Future_12
A1: Sample | B1: Billion | C1: Billion
A2: Number | B2: Years | C2: Years
A3: NSDZ01(FC) | B3: 0.6 | C3: 2
A4: NSDZ02(FC) | B4: 0.9 | C4: 2.1
A5: NSDZ02(FC) | B5: 1.2 | C5: 2.2
A6: 04XG14(FC) | B6: 1.4 | C6: 1.9
A7: 04XG26(FC) | B7: 1.4 | C7: 2
A8: 04XG26(EM) | B8: 1.5 | C8: 2.2
A9: ZK4-13U | B9: 1.6 | C9: 4.2
A10: ZK4-56L | B10: 1.7 | C10: Negative
A11: ZK84-10U | B11: 1.8 | C11: Negative
A12: ZK84-48L | B12: 1.8 | C12: 2.1
A13: ZK84-58L | B13: 1.8 | C13: 1.6
A14: ZK84-69L | B14: 1.8 | C14: 1.5
A15: ZK90-5U | B15: 1.9 | C15: Negative
A16: ZK90-7U | B16: 2 | C16: 7.33
A17: ZK92-12U | B17: Negative | C17: 3.3

Sheet Future_13
B1: Nd Age | C1: Hf Age
A2: Table 2 | B2: Billion Years | C2: Billion Years | G2: Billion Years
A3: BCR-1 | B3: 0.49 | C3: -9.27 | G3: -9.27
A4: BHVO-2 | B4: 0.57 | C4: -0.52 | G4: -3.83
A5: KL-3-24 | B5: 0.82 | C5: -0.03 | G5: 5.91
A6: KL-3-26 | B6: 1.15 | C6: -0.03 | G6: 10.62
A7: KL3-27-1 | B7: 1.28 | C7: 0.39 | G7: 14.65
A8: KL3-27-2 | B8: 1.39 | C8: 0.43
A9: KL3-28 | B9: 1.43 | C9: 0.44
A10: KL3-30 | B10: 1.52 | C10: 0.47
A11: KL3-38 | B11: 1.82 | C11: 0.54
A12: 08KL-01 | B12: 2.31 | C12: 0.59
A13: 08KL-03 | B13: 2.31 | C13: 0.63
A14: 08KL-04 | B14: 3.47 | C14: 0.69
A15: 08KL-05 | B15: 4.35 | C15: 0.7
A16: 08KL-07 | B16: 5.91 | C16: 0.74
A17: 08KL-09 | C17: 0.76
A18: 08KL-10 | C18: 1.28
A19: 08KL-11 | C19: 14.65
A20: 08KL-12
A21: 08KL-13
B24: Re/Os Age | C24: Re/Os Age
A25: Table 3 | B25: Billion Years | C25: Billion Years
A26: KL3-24 | B26: -0.33 | C26: -3.83
A27: KL3-26 | B27: -0.03 | C27: -2.49
A28: KL3-27-1 | B28: 0.16 | C28: -1.78
A29: KL3-27-2 | B29: 0.28 | C29: -1.17
A30: KL3-28 | B30: 0.39 | C30: -0.64
A31: KL3-30 | B31: 0.56 | C31: -0.62
A32: KL3-31 | B32: 0.6 | C32: -0.2
A33: KL3-38 | B33: 0.71 | C33: -0.15
A34: KL3-40 | B34: 0.74 | C34: -0.1
A35: KL3-41 | B35: 0.88 | C35: -0.04
A36: 08KL-01 | B36: 1.03 | C36: -0.02
A37: 08KL-02 | B37: 1.05 | C37: 0.01
A38: 08KL-03 | B38: 1.11 | C38: 0.69
A39: 08KL-04 | B39: 1.12 | C39: 1.01
A40: 08KL-05 | B40: 1.22 | C40: 1.38
A41: 08KL-07 | B41: 1.28 | C41: 1.42
A42: 08KL-09 | B42: 1.42 | C42: 2.17
A43: 08KL-10 | B43: 1.61 | C43: 2.54
A44: 08KL-11 | B44: 1.89 | C44: 2.64
A45: 08KL-12 | B45: 1.91 | C45: 6.52
A46: 08KL-13 | B46: 2.09 | C46: 10.62

Sheet Future_14
A3: Future Age | B3: Future Age
A4: 255 | B4: 662
A5: 271 | B5: 633
A6: 472 | B6: 732
A7: 483 | B7: 710
A8: 541 | B8: 843
A9: 1150 | B9: 1550
A10: 449 | B10: 679
A11: 740 | B11: 1080
A12: 473 | B12: 1090
A13: 448 | B13: 637
A14: 480 | B14: 545
A15: Future Age | B15: Future Age
A16: 209 | B16: 248
A17: 540 | B17: 562

Sheet Future_16
I1: 5669 | J1: 894 | K1: 32.62 | L1: dl | M1: 0.0801 | N1: 2.26 | O1: 0.17 | P1: F | Q1: 0.003 | R1: 0.143 | S1: F | T1: 0.0004 | U1: 0.142 | V1: 13.9 | W1: .4.3
B2: Billion Years | M2: 0.0248 | N2: 3.76 | O2: 0.0318 | P2: F | Q2: 0.0015 | R2: 0.1301 | S2: F | T2: 0.0004 | U2: 0.1299 | V2: 4.2 | W2: .0.5
A3: DW339B | B3: 9.1 | I3: 7517 | J3: 566 | K3: 22.66 | L3: dl | M3: 0.528 | N3: 2.81 | O3: 0.91 | P3: F | Q3: 0.018 | R3: 0.143 | S3: F | T3: 0.0004 | U3: 0.1377 | V3: 10.5 | W3: 1.9
A4: DW339C2 | B4: 8.8 | I4: 1136 | J4: 307 | K4: 16.91 | L4: dl | M4: 0.179 | N4: 0.385 | O4: 2.33 | P4: F | Q4: 0.05 | R4: 0.4337 | S4: F | T4: 0.0013 | U4: 0.42 | V4: 237 | W4: 8.8
A5: DW321B | B5: 6.2 | I5: 1016 | J5: 255 | K5: 17.38 | L5: dl | M5: 0.0264 | N5: 0.065 | O5: 2.02 | P5: F | Q5: 0.1 | R5: 0.394 | S5: F | T5: 0.003 | U5: 0.382 | V5: 207 | W5: 9.1
A6: DW339E | B6: -0.5 | I6: 2493 | J6: 355 | K6: 19.69 | L6: dl | M6: 0.0633 | N6: 0.648 | O6: 0.47 | P6: F | Q6: 0.01 | R6: 0.1346 | S6: F | T6: 0.0004 | U6: 0.1318 | V6: 5.7 | W6: 6.2
A7: DW317A | B7: -4.3 | I7: 108 | J7: 106 | K7: 14.34 | L7: 180 | M7: 0.172 | N7: 0.0107 | O7: 83.1 | P7: F | Q7: 1.5 | R7: 0.661 | S7: F | T7: 0.034 | U7: 0.175 | V7: 40 | W7: 0.4
I8: 204 | J8: 66 | K8: 14.12 | L8: dl | M8: 0.0352 | N8: 0.0254 | O8: 6.77 | P8: F | Q8: 0.27 | R8: 0.265 | S8: F | T8: 0.009 | U8: 0.225 | V8: 80.4 | W8: 1.3
A9: WV1 | B9: 0.4 | I9: 369 | J9: 313 | K9: 13.4 | L9: 120 | M9: 1.64 | N9: 0.211 | O9: 41.4 | P9: F | Q9: 0.7 | R9: 0.928 | S9: F | T9: 0.004 | U9: 0.686 | V9: 450 | W9: 1.2
A10: WV2 | B10: 1.3 | I10: 563 | J10: 192 | K10: 12.18 | L10: dl | M10: 0.0112 | N10: 0.0204 | O10: 2.7 | P10: F | Q10: 0.05 | R10: 0.256 | S10: F | T10: 0.003 | U10: 0.24 | V10: 92.8 | W10: 3.3 | X10: 3.3
A11: PW221 | B11: 1.2 | I11: 2494 | J11: 1108 | K11: 26.08 | L11: 1590 | M11: 2.24 | N11: 0.506 | O11: 22.4 | P11: F | Q11: 0.4 | R11: 0.525 | S11: F | T11: 0.002 | U11: 0.394 | V11: 216 | W11: 1.1
A12: SL58 | B12: 3.3 | I12: 3077 | J12: 1875 | K12: 32.13 | L12: 230 | M12: 0.737 | N12: 1.68 | O12: 2.13 | P12: F | Q12: 0.04 | R12: 0.1902 | S12: F | T12: 0.0006 | U12: 0.1777 | V12: 42.5 | W12: 2.1
A13: DW236 | B13: 1.1 | I13: 1505 | J13: 591 | K13: 23.27 | L13: dl | M13: 0.123 | N13: 0.591 | O13: 1.01 | P13: F | Q13: 0.02 | R13: 0.1714 | S13: F | T13: 0.0006 | U13: 0.1655 | V13: 32.8 | W13: 4.3
A14: DW238 | B14: 2.1
A15: DW302B | B15: 4.3
A16: DW339D | B16: 1.9
A21: Rhenium | K21: Table 1
A22: Osmium | B22: Initial | C22: Today | D22: Today | E22: The Ratio | F22: Half | G22: Decay | H22: 2.303/Delta | I22: Age | J22: Age | K22: Age | L22: Tch Age | M22: Age | N22: Age Ratio
A23: Dating | B23: 187Os/188Os | C23: 187Os/188Os | D23: 187Re/188Os | E23: Plus One | F23: Life | G23: Constant | H23: Constant | I23: Years | J23: Million Years | K23: Billion Years | L23: Billion Years | M23: Difference | N23: Percentage
B24: 0.142 | C24: 0.143 | D24: 0.17 | E24: =1+((C24-B24)/D24) -> 1.005882353 | F24: 41600000000 | G24: =(0.693/F24) -> 1.665865385e-11 | H24: =(2.303/G24) -> 1.382464646e+11 | I24: =(LOG(E24))*(H24) -> 352139876 | J24: =(I24/1000000) -> 352.139876 | K24: =(J24/1000) -> 0.352139876 | L24: -4300 | M24: =J24 +ABS(L24) -> 4652.139876 | N24: =ABS(L24/J24) *100 -> 1221.105672
B25: 0.1299 | C25: 0.1301 | D25: 0.0318 | E25: =1+((C25-B25)/D25) -> 1.006289308 | F25: 41600000000 | G25: 1.665865385e-11 | H25: =(2.303/G25) -> 1.382464646e+11 | I25: =(LOG(E25))*(H25) -> 376425538.6 | J25: =(I25/1000000) -> 376.4255386 | K25: =(J25/1000) -> 0.3764255386 | L25: -500 | M25: =J25 +ABS(L25) -> 876.4255386 | N25: =ABS(L25/J25) *100 -> 132.8283947
B26: 0.1377 | C26: 0.143 | D26: 0.91 | E26: =1+((C26-B26)/D26) -> 1.005824176 | F26: 41600000000 | G26: =(0.693/F26) -> 1.665865385e-11 | H26: =(2.303/G26) -> 1.382464646e+11 | I26: =(LOG(E26))*(H26) -> 348667266.8 | J26: =(I26/1000000) -> 348.6672668 | K26: =(J26/1000) -> 0.3486672668 | L26: 1900 | M26: =J26 +ABS(L26) -> 2248.667267 | N26: 544.9321405
B27: 0.42 | C27: 0.4337 | D27: 2.33 | E27: 1.005879828 | F27: 41600000000 | G27: 1.665865385e-11 | H27: 1.382464646e+11 | I27: 351989185.1 | J27: 351.9891851 | K27: 0.3519891851 | L27: 8800 | M27: =J27 +ABS(L27) -> 9151.989185 | N27: 2500.076813
B28: 0.382 | C28: 0.394 | D28: 2.02 | E28: 1.005940594 | F28: 41600000000 | G28: 1.665865385e-11 | H28: 1.382464646e+11 | I28: 355616104.2 | J28: 355.6161042 | K28: 0.3556161042 | L28: 9100 | M28: 9455.616104 | N28: 2558.93923
B29: 0.1318 | C29: 0.1346 | D29: 0.47 | E29: 1.005957447 | F29: 41600000000 | G29: 1.665865385e-11 | H29: 1.382464646e+11 | I29: 356621954 | J29: 356.621954 | K29: 0.356621954 | L29: 6200 | M29: 6556.621954 | N29: 1738.535704
B30: 0.175 | C30: 0.661 | D30: 83.1 | E30: 1.005848375 | F30: 41600000000 | G30: 1.665865385e-11 | H30: 1.382464646e+11 | I30: 350111774 | J30: 350.111774 | K30: 0.350111774 | L30: 400 | M30: 750.111774 | N30: 114.2492283
B31: 0.225 | C31: 0.265 | D31: 6.77 | E31: 1.005908419 | F31: 41600000000 | G31: 1.665865385e-11 | H31: 1.382464646e+11 | I31: 353695731.2 | J31: 353.6957312 | K31: 0.3536957312 | L31: 1300 | M31: 1653.695731 | N31: 367.5475515
B32: 0.686 | C32: 0.928 | D32: 41.4 | E32: 1.005845411 | F32: 41600000000 | G32: 1.665865385e-11 | H32: 1.382464646e+11 | I32: 349934801.7 | J32: 349.9348017 | K32: 0.3499348017 | L32: 1200 | M32: 1549.934802 | N32: 342.9210225
B33: 0.24 | C33: 0.256 | D33: 2.7 | E33: 1.005925926 | F33: 41600000000 | G33: 1.665865385e-11 | H33: 1.382464646e+11 | I33: 354740628.7 | J33: 354.7406287 | K33: 0.3547406287 | L33: 3300 | M33: 3654.740629 | N33: 930.2571325
B34: 0.394 | C34: 0.525 | D34: 22.4 | E34: 1.005848214 | F34: 41600000000 | G34: 1.665865385e-11 | H34: 1.382464646e+11 | I34: 350102153.9 | J34: 350.1021539 | K34: 0.3501021539 | L34: 1100 | M34: 1450.102154 | N34: 314.194011
B35: 0.1777 | C35: 0.1902 | D35: 2.13 | E35: 1.005868545 | F35: 41600000000 | G35: 1.665865385e-11 | H35: 1.382464646e+11 | I35: 351315670.2 | J35: 351.3156702 | K35: 0.3513156702 | L35: 2100 | M35: 2451.31567 | N35: 597.7530118
B36: 0.1655 | C36: 0.1714 | D36: 1.01 | E36: 1.005841584 | F36: 41600000000 | G36: 1.665865385e-11 | H36: 1.382464646e+11 | I36: 349706396.4 | J36: 349.7063964 | K36: 0.3497063964 | L36: 4300 | M36: 4649.706396 | N36: 1229.602902

Sheet Future_19
B2: Billion Years | C2: Billion Years
A3: YYB-1 | B3: -10.8 | C3: -0.53
A4: YYB-2 | B4: -3.5 | C4: -0.31
A5: YYB-3 | B5: 9.7 | C5: 0.33
A6: YYB-4 | B6: -0.2 | C6: 0.42
A7: YYB-5 | B7: 0.5 | C7: 1.18
A8: YYB-6 | B8: 1 | C8: 1.21
A9: YYB-7 | B9: 2 | C9: 1.42
A10: YYB-8 | B10: 2.2 | C10: 1.43
A11: YYB-9 | B11: 2.6 | C11: 1.45
A12: YYB-10 | B12: 2.8 | C12: 1.52
A13: YG-2 | C13: 1.68
A14: YG-5 | C14: 1.71
A15: YG-12 | C15: 1.72
A16: YG-18 | C16: 2.11
A17: YG-19 | C17: 2.14
A18: FS-1 | C18: 2.63
A19: FS-2 | C19: 2.69
A20: SF-18
A21: SF-23

Sheet Future_21
A3: Table 1
A4: TMa | B4: 3214 | C4: 2745 | D4: 3720 | E4: 3711 | F4: 2778 | G4: 935 | H4: 3951 | I4: 2735 | J4: 5485 | K4: 3428 | L4: 3469 | M4: 2268
A5: TRD | B5: 1990 | C5: 2217 | D5: 2435 | E5: 2356 | F5: 2620 | G5: 552 | H5: 2886 | I5: 2426 | J5: 2761 | K5: 2610 | L5: 2456 | M5: 1858
A6: TRDe | B6: 2911 | C6: 2327 | D6: 2632 | E6: 2565 | F6: 2653 | G6: 789 | H6: 3039 | I6: 2490 | J6: 3043 | K6: 2746 | L6: 2623 | M6: 1961
A7: TMa | B7: 3920 | C7: 3051 | D7: 3018 | E7: 2985 | F7: 4845 | G7: 3348 | H7: -552 | I7: 2961 | J7: 775 | K7: 2899 | L7: 1445 | M7: 5872 | N7: 2304 | O7: 2966 | P7: 2614
A8: TRD | B8: 2202 | C8: 2836 | D8: 2800 | E8: 2618 | F8: 2876 | G8: 1808 | H8: 1460 | I8: 2790 | J8: 546 | K8: 2802 | L8: 987 | M8: 2876 | N8: 1723 | O8: 2726 | P8: 2141 | T8: Million Years
A9: TRDe | B9: 2453 | C9: 2876 | D9: 2841 | E9: 2688 | F9: 3106 | G9: 2071 | H9: 3523 | I9: 2823 | J9: 717 | K9: 2821 | L9: 1170 | M9: 3165 | N9: 1868 | O9: 2772 | P9: 2244 | T9: 5872
T10: 5485
A11: Table 2 | B11: Million Years | D11: Million Years | E11: Million Years | T11: 4845
A12: TMa | B12: -14258 | D12: -14258 | E12: 5571 | G12: 3719 | H12: -14209 | I12: 3384 | J12: 5325 | K12: 5571 | L12: -609 | M12: 2471 | T12: -552
A13: TRD | B13: -14258 | D13: -14258 | E13: 5643 | G13: 2299 | H13: 1680 | I13: 1852 | J13: 1896 | K13: 2393 | L13: 1589 | M13: 1935
A14: TRDe | B14: -14209 | D14: -14209 | E14: 5793 | G14: 2361 | H14: 1861 | I14: 1925 | J14: 2000 | K14: 2485 | L14: 2170 | M14: 1971
A15: TMa | B15: -1066 | D15: -1066 | E15: 6950 | G15: 2601 | H15: 2588 | I15: 4331 | J15: 1242 | K15: 5643 | L15: -14258 | M15: 6994
A16: TRD | B16: -609 | D16: 4788 | E16: 6994 | G16: 2100 | H16: 2218 | I16: 2081 | J16: 1837 | K16: 557 | L16: 408 | M16: 2571
A17: TRDe | B17: 402 | D17: 5325 | E17: 6994 | G17: 2210 | H17: 2299 | I17: 2378 | J17: 1980 | K17: 545 | L17: 460 | M17: 2609
A18: TMa | B18: 408 | G18: 2738 | H18: 3099 | I18: 442 | J18: 6950 | K18: 2688
A19: TRD | B19: 408 | G19: 2552 | H19: 2841 | I19: 402 | J19: 2569 | K19: 2530
A20: TRDe | B20: 416 | G20: 2562 | H20: 2854 | I20: 416 | J20: 2670 | K20: 2542
B21: 442
B22: 460
B23: 460
B24: 545
B25: 557
B26: 600
B27: 805
B28: 846
B29: 964
B30: 1075
B31: 1242
B32: 1274
B33: 1589
B34: 1680
B35: 1681
B36: 1738
B37: 1837
B38: 1852
B39: 1861
B40: 1862
B41: 1862
B42: 1896
B43: 1925
B44: 1935
B45: 1957
B46: 1969
B47: 1971
B48: 1980
B49: 1997
B50: 2000
B51: 2081
B52: 2100
B53: 2168
B54: 2170
B55: 2210
B56: 2218
B57: 2299
B58: 2299
B59: 2313
B60: 2361
B61: 2363
B62: 2378
B63: 2385
B64: 2388
B65: 2393
B66: 2410
B67: 2471
B68: 2485
B69: 2530
B70: 2542
B71: 2552
B72: 2559
B73: 2562
B74: 2569
B75: 2571
B76: 2571
B77: 2588
B78: 2596
B79: 2601
B80: 2609
B81: 2609
B82: 2646
B83: 2670
B84: 2688
B85: 2738
B86: 2763
B87: 2769
B88: 2813
B89: 2818
B90: 2841
B91: 2844
B92: 2854
B93: 2877
B94: 2968
B95: 3048
B96: 3060
B97: 3096
B98: 3099
B99: 3330
B100: 3359
B101: 3384
B102: 3719
B103: 3834
B104: 4331
B105: 4482
B106: 4788
B107: 5325
B108: 5571
B109: 5643
B110: 5793
B111: 6950
B112: 6994
B113: 6994

Sheet Future_23
A1: Sample | B1: Billion | C1: Billion
A2: Number | B2: Years | C2: Years
A3: KRX-11 | B3: 0.8363 | C3: 0.7488
A4: KRX-14 | C4: 0.0561
A5: LPX-18 | B5: <0 | C5: 0.1443
A6: BTX-26 | B6: <0 | C6: <0
A7: BTX-23 | B7: 0.966 | C7: 0.3217
A8: BTX-16 | B8: 0.6242 | C8: 0.3635
A9: RRX-10 | C9: 0.217
A10: RRX-14 | C10: 0.675
A11: VM-10 | B11: 0.8074 | C11: <0
A12: FS-41 | C12: 0.3482
A13: CL-3 | C13: 0.5417
A14: CL-17 | C14: 0.1764

Sheet Future_26
A1: Sample Number | B1: Billion Years | C1: Billion Years | D1: Table 4.
A2: OI-61 | B2: -1.89 | C2: -7.12
A3: OI-63 | B3: -1.3 | C3: -3.54
A4: OI-67 | B4: -1.2 | C4: -1.99
A5: VR481 | B5: -0.94 | C5: -1.1
A6: VR50882 | B6: -0.92 | C6: -0.75
A7: VR40383a | B7: -0.62 | C7: -0.75
A8: VR19674 | B8: -0.62 | C8: -0.04
A9: VR50904 | B9: -0.03 | C9: 0.12
A10: VR16367 | B10: 0.05 | C10: 0.32
A11: A-s1 | B11: 0.13 | C11: 1.2
A12: A-s2 | B12: 0.97 | C12: 2.01
A13: A-s3 | B13: 0.98 | C13: 2.06
A14: A-s4 | B14: 1.21 | C14: 2.21
A15: C-s3 | B15: 1.49 | C15: 2.39
A16: E-s9 | B16: 1.57 | C16: 2.62
A17: E-s6 | B17: 1.83 | C17: 2.75
A18: E-s1 | B18: 1.92 | C18: 2.78
A19: E-s4 | B19: 2.13 | C19: 2.89
A20: Wholerock | B20: 2.3 | C20: 2.96
A21: b-s3a | B21: 2.32 | C21: 3.02
A22: b-s3b | B22: 2.54 | C22: 3.28
A23: b-s1 | B23: 2.86 | C23: 3.35
A24: b-s4 | B24: 2.98 | C24: 3.56
A25: a-s1 | B25: 3.03 | C25: 3.91
A26: Whole | B26: 3.52 | C26: 7.69
B29: Billion Years | C29: Billion Years
B30: -1.89 | C30: -7.12
B31: -1.3 | C31: -3.54
B32: -1.2 | C32: -1.99
B33: 3.52 | C33: 7.69
B34: 5.41 | C34: 14.81
